Workbook

Sheet sheet1 (hidden)
A1: 变压器类型 | B1: 变压器名称 | C1: 额定容量(kVA) | D1: 负载状态 | E1: 额定电压(高压)(V) | F1: 最大负载率 | G1: 最小负载率 | H1: 平均负载率
A2: 公变 | B2: BH-打苴社区-大寨台变 | C2: 400 | D2: 正常 | E2: 10kV | F2: 57.04 | G2: 5.12 | H2: 28.33
A3: 公变 | B3: BH-打苴社区-邓家寨台变 | C3: 250 | D3: 轻载 | E3: 10kV | F3: 22.67 | G3: 2.36 | H3: 8.62
A4: 公变 | B4: BH-打苴社区-东山台变 | C4: 400 | D4: 轻载 | E4: 10kV | F4: 25.46 | G4: 2.93 | H4: 9.51
A5: 公变 | B5: BH-打苴社区-横寨台变 | C5: 315 | D5: 轻载 | E5: 10kV | F5: 32.27 | G5: 2.49 | H5: 11.91
A6: 公变 | B6: BH-打苴社区-李家寨台变 | C6: 200 | D6: 轻载 | E6: 10kV | F6: 24.05 | G6: 1.72 | H6: 7.17
A7: 公变 | B7: BH-打苴社区-龙桥头台变 | C7: 80 | D7: 轻载 | E7: 10kV | F7: 22.06 | G7: 1.14 | H7: 5.14
A8: 公变 | B8: BH-打苴社区-马家源台变 | C8: 80 | D8: 轻载 | E8: 10kV | F8: 28.39 | G8: 1.38 | H8: 6.06
A9: 公变 | B9: BH-打苴社区-孙家寨台变 | C9: 125 | D9: 轻载 | E9: 10kV | F9: 27.4 | G9: 2.57 | H9: 8.79
A10: 公变 | B10: BH-打苴社区-塘子河1#台变 | C10: 125 | D10: 轻载 | E10: 10kV | F10: 50.3 | G10: 7.96 | H10: 20.62
A11: 公变 | B11: BH-打苴社区-塘子河2#台变 | C11: 50 | D11: 轻载 | E11: 10kV | F11: 30.74 | G11: 0.78 | H11: 4.94
A12: 公变 | B12: BH-打苴社区-徐家湾番家寨台变 | C12: 250 | D12: 轻载 | E12: 10kV | F12: 23.93 | G12: 1.78 | H12: 7.24
A13: 公变 | B13: BH-打苴社区-杨家湾台变 | C13: 200 | D13: 轻载 | E13: 10kV | F13: 24.46 | G13: 7.28 | H13: 10.64
A14: 公变 | B14: BH-凤山社区-后屯台变 | C14: 400 | D14: 轻载 | E14: 10kV | F14: 33.92 | G14: 3.9 | H14: 12.7
A15: 公变 | B15: BH-凤山社区-沙帽山台变 | C15: 100 | D15: 轻载 | E15: 10kV | F15: 41.55 | G15: 3.31 | H15: 10.61
A16: 公变 | B16: BH-凤山社区-小尹家湾台变 | C16: 160 | D16: 轻载 | E16: 10kV | F16: 26.37 | G16: 1.78 | H16: 7.24
A17: 公变 | B17: BH-富裕社区-白寺台变 | C17: 400 | D17: 轻载 | E17: 10kV | F17: 26.27 | G17: 2.79 | H17: 11.61
A18: 公变 | B18: BH-富裕社区-大井台变 | C18: 315 | D18: 轻载 | E18: 10kV | F18: 30.24 | G18: 2.94 | H18: 10.28
A19: 公变 | B19: BH-富裕社区-大石板尹家小河台变 | C19: 315 | D19: 正常 | E19: 10kV | F19: 54.33 | G19: 6.84 | H19: 24.45
A20: 公变 | B20: BH-富裕社区-范、赵、平、杨台变 | C20: 315 | D20: 轻载 | E20: 10kV | F20: 31.26 | G20: 4.3 | H20: 13.29
A21: 公变 | B21: BH-富裕社区-坡头坡脚台变 | C21: 250 | D21: 轻载 | E21: 10kV | F21: 21.18 | G21: 2.37 | H21: 8.44
A22: 公变 | B22: BH-富裕社区-秋厂台变 | C22: 200 | D22: 轻载 | E22: 10kV | F22: 40.05 | G22: 4.2 | H22: 15.39
A23: 公变 | B23: BH-富裕社区-小井台变 | C23: 250 | D23: 轻载 | E23: 10kV | F23: 29.43 | G23: 2.3 | H23: 9.3
A24: 公变 | B24: BH-岗峨社区-孟家寨台变 | C24: 315 | D24: 轻载 | E24: 10kV | F24: 48.54 | G24: 7.04 | H24: 19.79
A25: 公变 | B25: BH-岗峨社区-挑坡台变 | C25: 315 | D25: 轻载 | E25: 10kV | F25: 36.54 | G25: 2.9 | H25: 11.16
A26: 公变 | B26: BH-岗峨社区-新寨台变 | C26: 80 | D26: 轻载 | E26: 10kV | F26: 33.7 | G26: 5.13 | H26: 12.36
A27: 公变 | B27: BH-岗峨社区-中村台变 | C27: 200 | D27: 轻载 | E27: 10kV | F27: 32.99 | G27: 3.07 | H27: 12.55
A28: 公变 | B28: BH-高原社区-龙塘台变 | C28: 30 | D28: 轻载 | E28: 10kV | F28: 52.89 | G28: 3.75 | H28: 11.71
A29: 公变 | B29: BH-花园村-杜家湾台变 | C29: 315 | D29: 轻载 | E29: 10kV | F29: 16.85 | G29: 2.11 | H29: 5.58
A30: 公变 | B30: BH-花园村-康何台变 | C30: 200 | D30: 轻载 | E30: 10kV | F30: 22.64 | G30: 3.1 | H30: 8.85
A31: 公变 | B31: BH-花园村-麻梨山台变 | C31: 315 | D31: 轻载 | E31: 10kV | F31: 19.04 | G31: 8.86 | H31: 10.73
A32: 公变 | B32: BH-花园村-柞木树台变 | C32: 200 | D32: 轻载 | E32: 10kV | F32: 21.2 | G32: 2.35 | H32: 6.61
A33: 公变 | B33: BH-双海社区-柴家营台变 | C33: 400 | D33: 轻载 | E33: 10kV | F33: 23.9 | G33: 2.74 | H33: 9.57
A34: 公变 | B34: BH-双海社区-海口1#台变 | C34: 400 | D34: 轻载 | E34: 10kV | F34: 32.09 | G34: 4.8 | H34: 13.67
A35: 公变 | B35: BH-双海社区-海口2#台变 | C35: 400 | D35: 轻载 | E35: 10kV | F35: 23.31 | G35: 2.66 | H35: 8.35
A36: 公变 | B36: BH-双海社区-邵家营1#台变 | C36: 400 | D36: 轻载 | E36: 10kV | F36: 39.53 | G36: 5.19 | H36: 16.69
A37: 公变 | B37: BH-双海社区-邵家营2#台变 | C37: 80 | D37: 正常 | E37: 10kV | F37: 74.01 | G37: 15.13 | H37: 31.29
A38: 公变 | B38: BH-双海社区-水沟台变 | C38: 400 | D38: 轻载 | E38: 10kV | F38: 34.46 | G38: 4.27 | H38: 14.68
A39: 公变 | B39: BH-双海社区-赵家岳家台变 | C39: 400 | D39: 轻载 | E39: 10kV | F39: 22.13 | G39: 2.43 | H39: 8.92
A40: 公变 | B40: BH-双坡村-大元塘台变 | C40: 50 | D40: 轻载 | E40: 10kV | F40: 67.54 | G40: 3.81 | H40: 8.18
A41: 公变 | B41: BH-双坡村-麻厂安置地台变 | C41: 30 | D41: 轻载 | E41: 10kV | F41: 79.65 | G41: 0.56 | H41: 5.1
A42: 公变 | B42: BH-双坡村-双坡台变 | C42: 160 | D42: 轻载 | E42: 10kV | F42: 34.03 | G42: 3.1 | H42: 8.79
A43: 公变 | B43: BH-双坡村-新寨台变 | C43: 50 | D43: 轻载 | E43: 10kV | F43: 20.06 | G43: 0.66 | H43: 3.71
A44: 公变 | B44: BH-下村社区-北海下村台变 | C44: 315 | D44: 轻载 | E44: 10kV | F44: 26.92 | G44: 0.44 | H44: 9.29
A45: 公变 | B45: BH-下村社区-杜家湾台变 | C45: 200 | D45: 轻载 | E45: 10kV | F45: 32.94 | G45: 3.28 | H45: 11.33
A46: 公变 | B46: BH-下村社区-后所营台变 | C46: 200 | D46: 正常 | E46: 10kV | F46: 68.93 | G46: 8.09 | H46: 25.21
A47: 公变 | B47: BH-下村社区-上村台变 | C47: 100 | D47: 轻载 | E47: 10kV | F47: 36.8 | G47: 1.6 | H47: 7.58
A48: 公变 | B48: BH-下村社区-中村台变 | C48: 400 | D48: 轻载 | E48: 10kV | F48: 29.61 | G48: 2.27 | H48: 8.91
A49: 公变 | B49: BH-新乐社区-代家寨台变 | C49: 200 | D49: 轻载 | E49: 10kV | F49: 46.88 | G49: 2.97 | H49: 11.94
A50: 公变 | B50: BH-新乐社区-番徐刘马段家寨台变 | C50: 315 | D50: 轻载 | E50: 10kV | F50: 47.61 | G50: 3.53 | H50: 15.14
A51: 公变 | B51: BH-新乐社区-沟下台变 | C51: 200 | D51: 轻载 | E51: 10kV | F51: 24.9 | G51: 2.13 | H51: 6.28
A52: 公变 | B52: BH-新乐社区-郭家营台变 | C52: 100 | D52: 正常 | E52: 10kV | F52: 68.72 | G52: 6.2 | H52: 18.3
A53: 公变 | B53: BH-新乐社区-龙家营台变 | C53: 315 | D53: 轻载 | E53: 10kV | F53: 44.16 | G53: 3.31 | H53: 12.82
A54: 公变 | B54: BH-新乐社区-玛御谷清芷园1#箱变-DW | C54: 800 | D54: 轻载 | E54: 10kV | F54: 17.18 | G54: 1.96 | H54: 7.79
A55: 公变 | B55: BH-新乐社区-玛御谷清芷园2#箱变-DW | C55: 630 | D55: 轻载 | E55: 10kV | F55: 20.71 | G55: 3.99 | H55: 9.71
A56: 公变 | B56: BH-新乐社区-玛御谷清芷园3#箱变-DW | C56: 500 | D56: 轻载 | E56: 10kV | F56: 16.52 | G56: 1.68 | H56: 5.95
A57: 公变 | B57: BH-新乐社区-清河台变 | C57: 100 | D57: 轻载 | E57: 10kV | F57: 33.05 | G57: 1.78 | H57: 9.13
A58: 公变 | B58: BH-新乐社区-新乐街1#台变 | C58: 315 | D58: 正常 | E58: 10kV | F58: 81.03 | G58: 0 | H58: 29.61
A59: 公变 | B59: BH-新乐社区-新乐街2#台变 | C59: 315 | D59: 正常 | E59: 10kV | F59: 98.93 | G59: 9.93 | H59: 39.29
A60: 公变 | B60: BH-新乐社区-秧田洼台变 | C60: 200 | D60: 正常 | E60: 10kV | F60: 74.9 | G60: 7.58 | H60: 30.72
A61: 公变 | B61: BH-盈河村-岔路台变 | C61: 315 | D61: 轻载 | E61: 10kV | F61: 55.09 | G61: 3.27 | H61: 9.61
A62: 公变 | B62: BH-盈河村-大寨台变 | C62: 315 | D62: 轻载 | E62: 10kV | F62: 33.33 | G62: 3.97 | H62: 15.17
A63: 公变 | B63: BH-盈河村-汉坝台变 | C63: 125 | D63: 轻载 | E63: 10kV | F63: 34.08 | G63: 1.76 | H63: 8.49
A64: 公变 | B64: BH-盈河村-河头台变 | C64: 80 | D64: 轻载 | E64: 10kV | F64: 35.56 | G64: 2.96 | H64: 10.51
A65: 公变 | B65: BH-盈河村-街子台变 | C65: 80 | D65: 正常 | E65: 10kV | F65: 147.08 | G65: 4.83 | H65: 29.03
A66: 公变 | B66: BH-盈河村-酒寨台变 | C66: 250 | D66: 轻载 | E66: 10kV | F66: 37.7 | G66: 3.38 | H66: 12.92
A67: 公变 | B67: BH-盈河村-李家寨台变 | C67: 125 | D67: 轻载 | E67: 10kV | F67: 50.08 | G67: 6.49 | H67: 16.72
A68: 公变 | B68: BH-盈河村-新红台变 | C68: 125 | D68: 轻载 | E68: 10kV | F68: 44.46 | G68: 3.51 | H68: 15.09
A69: 公变 | B69: BH-盈河村-澡塘台变 | C69: 200 | D69: 轻载 | E69: 10kV | F69: 19.64 | G69: 2.41 | H69: 7.83
A70: 公变 | B70: BH-盈水社区-村尾1#台变 | C70: 100 | D70: 正常 | E70: 10kV | F70: 71.63 | G70: 9.61 | H70: 33.05
A71: 公变 | B71: BH-盈水社区-村尾2#台变 | C71: 315 | D71: 轻载 | E71: 10kV | F71: 27.4 | G71: 3.18 | H71: 10.2
A72: 公变 | B72: BH-盈水社区-下河村2#台变 | C72: 315 | D72: 轻载 | E72: 10kV | F72: 18.73 | G72: 2.11 | H72: 7.64
A73: 公变 | B73: BH-油灯社区-草坝街台变 | C73: 315 | D73: 正常 | E73: 10kV | F73: 51.57 | G73: 10.41 | H73: 27.91
A74: 公变 | B74: BH-油灯社区-洞觉村台变 | C74: 400 | D74: 轻载 | E74: 10kV | F74: 34.91 | G74: 3.95 | H74: 13.17
A75: 公变 | B75: BH-油灯社区-油灯庄1#台变 | C75: 315 | D75: 轻载 | E75: 10kV | F75: 40.47 | G75: 0 | H75: 15.08
A76: 公变 | B76: BH-油灯社区-油灯庄2#台变 | C76: 315 | D76: 轻载 | E76: 10kV | F76: 28.56 | G76: 3.08 | H76: 11.27
A77: 公变 | B77: BH-竹坝村-黄姜地台变 | C77: 30 | D77: 轻载 | E77: 10kV | F77: 40.03 | G77: 4.87 | H77: 9.21
A78: 公变 | B78: BH-竹坝村-乃撒变台 | C78: 100 | D78: 轻载 | E78: 10kV | F78: 2.28 | G78: 0.09 | H78: 0.42
A79: 公变 | B79: BH-竹坝村-石老虎台变 | C79: 80 | D79: 轻载 | E79: 10kV | F79: 34.22 | G79: 4.43 | H79: 9.86
A80: 公变 | B80: CQS-大寨村-大寨1#台变 | C80: 250 | D80: 轻载 | E80: 10kV | F80: 41.52 | G80: 5.67 | H80: 14.5
A81: 公变 | B81: CQS-大寨村-大寨4#台变 | C81: 315 | D81: 轻载 | E81: 10kV | F81: 34.63 | G81: 2.77 | H81: 9.79
A82: 公变 | B82: CQS-大寨村-沙坡1#台变 | C82: 250 | D82: 轻载 | E82: 10kV | F82: 40.27 | G82: 5.81 | H82: 14.58
A83: 公变 | B83: CQS-大寨村-沙坡2#台变 | C83: 160 | D83: 轻载 | E83: 10kV | F83: 26.13 | G83: 1.8 | H83: 8.91
A84: 公变 | B84: CQS-荆陈村-陈家寨1#台变 | C84: 160 | D84: 轻载 | E84: 10kV | F84: 41.33 | G84: 4.6 | H84: 13.58
A85: 公变 | B85: CQS-荆陈村-陈家寨2#台变 | C85: 160 | D85: 轻载 | E85: 10kV | F85: 31.88 | G85: 2.47 | H85: 8.82
A86: 公变 | B86: CQS-荆陈村-陈家寨3#台变 | C86: 315 | D86: 轻载 | E86: 10kV | F86: 35.66 | G86: 2.49 | H86: 7.24
A87: 公变 | B87: CQS-荆陈村-荆竹寨1#台变 | C87: 160 | D87: 轻载 | E87: 10kV | F87: 28.28 | G87: 2.18 | H87: 7.54
A88: 公变 | B88: CQS-荆陈村-荆竹寨2#台变 | C88: 315 | D88: 轻载 | E88: 10kV | F88: 25.71 | G88: 2.34 | H88: 7.72
A89: 公变 | B89: CQS-荆陈村-朱星街集镇台变 | C89: 200 | D89: 轻载 | E89: 10kV | F89: 48.66 | G89: 6.01 | H89: 19.93
A90: 公变 | B90: CQS-良盈村-芭蕉关1#台变 | C90: 160 | D90: 正常 | E90: 10kV | F90: 61.38 | G90: 9.15 | H90: 24.11
A91: 公变 | B91: CQS-良盈村-芭蕉关2#台变 | C91: 200 | D91: 轻载 | E91: 10kV | F91: 29.1 | G91: 0 | H91: 11.2
A92: 公变 | B92: CQS-良盈村-半个山台变 | C92: 125 | D92: 轻载 | E92: 10kV | F92: 37.64 | G92: 3.01 | H92: 8.95
A93: 公变 | B93: CQS-良盈村-蔡家寨老寨子台变 | C93: 50 | D93: 正常 | E93: 10kV | F93: 72.23 | G93: 1.02 | H93: 8.73
A94: 公变 | B94: CQS-良盈村-蔡家寨新寨子台变 | C94: 80 | D94: 轻载 | E94: 10kV | F94: 45.32 | G94: 3.31 | H94: 11.99
A95: 公变 | B95: CQS-良盈村-谷家寨台变 | C95: 250 | D95: 轻载 | E95: 10kV | F95: 23.92 | G95: 1.24 | H95: 6.3
A96: 公变 | B96: CQS-良盈村-蒋家营台变 | C96: 80 | D96: 轻载 | E96: 10kV | F96: 5.97 | G96: 0.05 | H96: 0.3
A97: 公变 | B97: CQS-良盈村-老洋河台变 | C97: 200 | D97: 轻载 | E97: 10kV | F97: 41.14 | G97: 2.65 | H97: 10.77
A98: 公变 | B98: CQS-良盈村-良盈村委会台变 | C98: 125 | D98: 轻载 | E98: 10kV | F98: 102.88 | G98: 3.96 | H98: 13.81
A99: 公变 | B99: CQS-良盈村-蔺家寨1#台变 | C99: 80 | D99: 轻载 | E99: 10kV | F99: 49.84 | G99: 3.64 | H99: 11.73
A100: 公变 | B100: CQS-良盈村-蔺家寨2#台变 | C100: 200 | D100: 轻载 | E100: 10kV | F100: 25.52 | G100: 2.04 | H100: 7.97
A101: 公变 | B101: CQS-良盈村-蔺家寨3#台变 | C101: 250 | D101: 轻载 | E101: 10kV | F101: 35.18 | G101: 2.76 | H101: 10.22
A102: 公变 | B102: CQS-良盈村-热海新村台变 | C102: 80 | D102: 正常 | E102: 10kV | F102: 73.27 | G102: 9.81 | H102: 30.17
A103: 公变 | B103: CQS-清水村-村委会台变 | C103: 160 | D103: 正常 | E103: 10kV | F103: 88.01 | G103: 10.44 | H103: 27.14
A104: 公变 | B104: CQS-清水村-湖东新墙台变 | C104: 250 | D104: 正常 | E104: 10kV | F104: 50.53 | G104: 3.98 | H104: 18.81
A105: 公变 | B105: CQS-清水村-老街子台变 | C105: 315 | D105: 轻载 | E105: 10kV | F105: 34.99 | G105: 4.32 | H105: 13.99
A106: 公变 | B106: CQS-清水村-老寨子台变 | C106: 160 | D106: 轻载 | E106: 10kV | F106: 44.45 | G106: 4.81 | H106: 15.42
A107: 公变 | B107: CQS-清水村-刘家寨台变 | C107: 80 | D107: 轻载 | E107: 10kV | F107: 44.01 | G107: 9.08 | H107: 18.39
A108: 公变 | B108: CQS-清水村-罗所冲下寨台变 | C108: 315 | D108: 轻载 | E108: 10kV | F108: 96.19 | G108: 2.21 | H108: 19.04
A109: 公变 | B109: CQS-清水村-罗所冲新寨台变 | C109: 125 | D109: 正常 | E109: 10kV | F109: 58.94 | G109: 4.42 | H109: 23.11
A110: 公变 | B110: CQS-清水村-罗所冲中寨台变 | C110: 200 | D110: 正常 | E110: 10kV | F110: 86.84 | G110: 0 | H110: 39.18
A111: 公变 | B111: CQS-清水村-苏家营1#台变 | C111: 315 | D111: 轻载 | E111: 10kV | F111: 34.17 | G111: 4.69 | H111: 16.74
A112: 公变 | B112: CQS-清水村-苏家营2#台变 | C112: 80 | D112: 正常 | E112: 10kV | F112: 64.42 | G112: 5.55 | H112: 25.4
A113: 公变 | B113: CQS-三家村-冯家营台变 | C113: 400 | D113: 轻载 | E113: 10kV | F113: 29.93 | G113: 3.47 | H113: 11.6
A114: 公变 | B114: CQS-三家村-何家寨台变 | C114: 160 | D114: 轻载 | E114: 10kV | F114: 36.88 | G114: 2.67 | H114: 9.39
A115: 公变 | B115: CQS-三家村-蛮磊台变 | C115: 100 | D115: 轻载 | E115: 10kV | F115: 34.17 | G115: 1.77 | H115: 7.22
A116: 公变 | B116: CQS-三家村-三家村寨台变 | C116: 400 | D116: 轻载 | E116: 10kV | F116: 42.23 | G116: 3.2 | H116: 13.77
A117: 公变 | B117: CQS-三家村-中寨台变 | C117: 250 | D117: 轻载 | E117: 10kV | F117: 77.28 | G117: 0 | H117: 13.37
A118: 公变 | B118: CQS-驼峰村-栗柴坝大坡社台变 | C118: 125 | D118: 轻载 | E118: 10kV | F118: 36.98 | G118: 2.31 | H118: 11.52
A119: 公变 | B119: CQS-驼峰村-栗柴坝大寨台变 | C119: 200 | D119: 轻载 | E119: 10kV | F119: 44.76 | G119: 2.75 | H119: 11.54
A120: 公变 | B120: CQS-驼峰村-栗柴坝许上许下台变 | C120: 200 | D120: 轻载 | E120: 10kV | F120: 43.2 | G120: 4.05 | H120: 13.84
A121: 公变 | B121: CQS-驼峰村-瞿家营1至3社台变 | C121: 200 | D121: 轻载 | E121: 10kV | F121: 24.88 | G121: 1.34 | H121: 6
A122: 公变 | B122: CQS-驼峰村-瞿家营4、5社台变 | C122: 200 | D122: 轻载 | E122: 10kV | F122: 30.21 | G122: 2.16 | H122: 7.64
A123: 公变 | B123: CQS-驼峰村-瞿家营6社台变 | C123: 200 | D123: 轻载 | E123: 10kV | F123: 28.33 | G123: 2.48 | H123: 7.94
A124: 公变 | B124: CQS-驼峰村-瞿家营槽子口台变 | C124: 160 | D124: 轻载 | E124: 10kV | F124: 34.37 | G124: 4.27 | H124: 11.15
A125: 公变 | B125: CQS-驼峰村-水坝田台变 | C125: 50 | D125: 轻载 | E125: 10kV | F125: 27.71 | G125: 1.47 | H125: 7.66
A126: 公变 | B126: CQS-驼峰村-文兴社台变 | C126: 250 | D126: 轻载 | E126: 10kV | F126: 24.22 | G126: 2.06 | H126: 6.09
A127: 公变 | B127: CQS-驼峰村-虞家营新村1#台变 | C127: 250 | D127: 轻载 | E127: 10kV | F127: 45.72 | G127: 5.4 | H127: 16.56
A128: 公变 | B128: CQS-驼峰村-虞家营新村2#台变 | C128: 315 | D128: 轻载 | E128: 10kV | F128: 20.26 | G128: 1.61 | H128: 5.24
A129: 公变 | B129: CQ-宝峰社区-5#地块1#(南)箱变 | C129: 800 | D129: 轻载 | E129: 10kV | F129: 36.17 | G129: 3.76 | H129: 16.79
A130: 公变 | B130: CQ-宝峰社区-碧桂园一期1#箱变-DW | C130: 1250 | D130: 轻载 | E130: 10kV | F130: 18.68 | G130: 3.52 | H130: 7.74
A131: 公变 | B131: CQ-宝峰社区-碧桂园一期2#箱变-DW | C131: 1250 | D131: 轻载 | E131: 10kV | F131: 25.05 | G131: 3.64 | H131: 10.15
A132: 公变 | B132: CQ-宝峰社区-公租房6#地块箱变 | C132: 500 | D132: 正常 | E132: 10kV | F132: 42.83 | G132: 4.96 | H132: 21.47
A133: 公变 | B133: CQ-宝峰社区-公租房8#地块1#箱变 | C133: 800 | D133: 轻载 | E133: 10kV | F133: 36.03 | G133: 3.41 | H133: 15.07
A134: 公变 | B134: CQ-宝峰社区-公租房8#地块2#箱变 | C134: 800 | D134: 轻载 | E134: 10kV | F134: 28.99 | G134: 2.89 | H134: 12.96
A135: 公变 | B135: CQ-宝峰社区-公租房8#地块3#箱变 | C135: 800 | D135: 轻载 | E135: 10kV | F135: 27.76 | G135: 3.1 | H135: 12.84
A136: 公变 | B136: CQ-宝峰社区-公租房8#地块4#箱变 | C136: 800 | D136: 轻载 | E136: 10kV | F136: 22.82 | G136: 1.46 | H136: 8.59
A137: 公变 | B137: CQ-宝峰社区-郭家寨台变 | C137: 400 | D137: 正常 | E137: 10kV | F137: 77.2 | G137: 13.79 | H137: 39.04
A138: 公变 | B138: CQ-宝峰社区-海和苑箱变 | C138: 630 | D138: 轻载 | E138: 10kV | F138: 12.54 | G138: 2.26 | H138: 4.88
A139: 公变 | B139: CQ-宝峰社区-核桃园丁子寨台变 | C139: 250 | D139: 正常 | E139: 10kV | F139: 67.13 | G139: 6.97 | H139: 24.31
A140: 公变 | B140: CQ-宝峰社区-卢家寨台变 | C140: 250 | D140: 正常 | E140: 10kV | F140: 66.39 | G140: 8.01 | H140: 28.29
A141: 公变 | B141: CQ-宝峰社区-人民医院公租房1#箱变-DW | C141: 800 | D141: 轻载 | E141: 10kV | F141: 20.92 | G141: 1.18 | H141: 6.48
A142: 公变 | B142: CQ-宝峰社区-人民医院公租房2#箱变-DW | C142: 800 | D142: 轻载 | E142: 10kV | F142: 9.99 | G142: 0.79 | H142: 3.1
A143: 公变 | B143: CQ-宝峰社区-西山坝公租房5号地(北)1#箱变 | C143: 1000 | D143: 轻载 | E143: 10kV | F143: 26.97 | G143: 4.51 | H143: 13.77
A144: 公变 | B144: CQ-宝峰社区-西山坝公租房7#地块1#箱变 | C144: 500 | D144: 轻载 | E144: 10kV | F144: 25.62 | G144: 4.88 | H144: 11.8
A145: 公变 | B145: CQ-宝峰社区-西山坝公租房二号地块1#箱变 | C145: 1000 | D145: 轻载 | E145: 10kV | F145: 32.22 | G145: 3.55 | H145: 13.2
A146: 公变 | B146: CQ-宝峰社区-西山坝公租房二号地块2#箱变 | C146: 1000 | D146: 轻载 | E146: 10kV | F146: 28.57 | G146: 5.16 | H146: 14.19
A147: 公变 | B147: CQ-宝峰社区-西山坝腾越镇公租房1#箱变-DW | C147: 800 | D147: 轻载 | E147: 10kV | F147: 19.58 | G147: 1.61 | H147: 8.45
A148: 公变 | B148: CQ-宝峰社区-西山坝腾越镇公租房2#箱变-DW | C148: 800 | D148: 轻载 | E148: 10kV | F148: 22.7 | G148: 2.82 | H148: 10.16
A149: 公变 | B149: CQ-宝峰社区-西山坝卫生局公租房箱变-DW | C149: 800 | D149: 轻载 | E149: 10kV | F149: 16.61 | G149: 1.34 | H149: 5.98
A150: 公变 | B150: CQ-东山社区-金鹰地产欢乐湖一期箱变-DW | C150: 800 | D150: 轻载 | E150: 10kV | F150: 14.35 | G150: 1.77 | H150: 6.48
A151: 公变 | B151: CQ-观音塘社区-434#线1#箱变 | C151: 500 | D151: 正常 | E151: 10kV | F151: 61.99 | G151: 18.07 | H151: 35.07
A152: 公变 | B152: CQ-观音塘社区-434#线2#箱变 | C152: 800 | D152: 正常 | E152: 10kV | F152: 69.14 | G152: 17.81 | H152: 41.78
A153: 公变 | B153: CQ-观音塘社区-边防检查站台变 | C153: 400 | D153: 正常 | E153: 10kV | F153: 59.4 | G153: 10.01 | H153: 29.16
A154: 公变 | B154: CQ-观音塘社区-滨河小区3#桥台变 | C154: 200 | D154: 正常 | E154: 10kV | F154: 64.7 | G154: 9.61 | H154: 28.57
A155: 公变 | B155: CQ-观音塘社区-财神庙后安置地台变 | C155: 315 | D155: 正常 | E155: 10kV | F155: 42.97 | G155: 8.59 | H155: 21.68
A156: 公变 | B156: CQ-观音塘社区-大槽子台变 | C156: 400 | D156: 正常 | E156: 10kV | F156: 65.36 | G156: 6.24 | H156: 26.4
A157: 公变 | B157: CQ-观音塘社区-大宽邑安置地箱变-DW | C157: 630 | D157: 轻载 | E157: 10kV | F157: 34.35 | G157: 7.4 | H157: 16.74
A158: 公变 | B158: CQ-观音塘社区-东营老路2#台变 | C158: 315 | D158: 正常 | E158: 10kV | F158: 83.87 | G158: 17.31 | H158: 41.45
A159: 公变 | B159: CQ-观音塘社区-东营老路台变 | C159: 315 | D159: 正常 | E159: 10kV | F159: 62.31 | G159: 10.63 | H159: 27.11
A160: 公变 | B160: CQ-观音塘社区-翡翠古镇1#箱变-DW | C160: 500 | D160: 轻载 | E160: 10kV | F160: 28.05 | G160: 4.01 | H160: 13.55
A161: 公变 | B161: CQ-观音塘社区-翡翠古镇2#箱变-DW | C161: 500 | D161: 轻载 | E161: 10kV | F161: 32.79 | G161: 2.45 | H161: 14.32
A162: 公变 | B162: CQ-观音塘社区-翡翠古镇3#箱变-DW | C162: 500 | D162: 轻载 | E162: 10kV | F162: 20.2 | G162: 2.64 | H162: 8.88
A163: 公变 | B163: CQ-观音塘社区-公租房4#地块1#箱变 | C163: 800 | D163: 正常 | E163: 10kV | F163: 26.78 | G163: 3.77 | H163: 13.11
A164: 公变 | B164: CQ-观音塘社区-公租房4#地块2#箱变 | C164: 800 | D164: 轻载 | E164: 10kV | F164: 21.66 | G164: 2.23 | H164: 8.4
A165: 公变 | B165: CQ-观音塘社区-古茶墅3~4号箱变 | C165: 500 | D165: 轻载 | E165: 10kV | F165: 7.73 | G165: 1.28 | H165: 2.4
A166: 公变 | B166: CQ-观音塘社区-古茶墅假日庄园箱变-DW | C166: 1250 | D166: 轻载 | E166: 10kV | F166: 10.82 | G166: 1.9 | H166: 4.47
A167: 公变 | B167: CQ-观音塘社区-古茶墅小高层住宅1#箱变 | C167: 500 | D167: 轻载 | E167: 10kV | F167: 18.42 | G167: 2.27 | H167: 7.4
A168: 公变 | B168: CQ-观音塘社区-古茶墅小高层住宅2#箱变 | C168: 500 | D168: 轻载 | E168: 10kV | F168: 20.23 | G168: 2.52 | H168: 7.38
A169: 公变 | B169: CQ-观音塘社区-拐角楼安置地台变 | C169: 400 | D169: 轻载 | E169: 10kV | F169: 24.62 | G169: 6.11 | H169: 12.11
A170: 公变 | B170: CQ-观音塘社区-关家巷台变 | C170: 315 | D170: 正常 | E170: 10kV | F170: 58.94 | G170: 9.95 | H170: 27.26
A171: 公变 | B171: CQ-观音塘社区-观音塘安置地台变 | C171: 400 | D171: 轻载 | E171: 10kV | F171: 35.22 | G171: 6.08 | H171: 15.53
A172: 公变 | B172: CQ-观音塘社区-观音塘打坟场台变 | C172: 400 | D172: 轻载 | E172: 10kV | F172: 38.66 | G172: 6.73 | H172: 18.47
A173: 公变 | B173: CQ-观音塘社区-观音塘花园小区台变 | C173: 500 | D173: 正常 | E173: 10kV | F173: 80.36 | G173: 16.12 | H173: 39.61
A174: 公变 | B174: CQ-观音塘社区-观音塘小区台变 | C174: 315 | D174: 正常 | E174: 10kV | F174: 81.4 | G174: 15.97 | H174: 42.11
A175: 公变 | B175: CQ-观音塘社区-观音塘玉泉小区台变 | C175: 400 | D175: 正常 | E175: 10kV | F175: 58.2 | G175: 12.36 | H175: 30.68
A176: 公变 | B176: CQ-观音塘社区-红星小区安置地台变 | C176: 160 | D176: 正常 | E176: 10kV | F176: 63.16 | G176: 8.57 | H176: 27.25
A177: 公变 | B177: CQ-观音塘社区-惠民公司观音塘公租房台变-DW | C177: 315 | D177: 轻载 | E177: 10kV | F177: 16.22 | G177: 1.16 | H177: 4.5
A178: 公变 | B178: CQ-观音塘社区-军民小区1号台变 | C178: 400 | D178: 正常 | E178: 10kV | F178: 60.87 | G178: 11.64 | H178: 34.2
A179: 公变 | B179: CQ-观音塘社区-军民小区2号台变 | C179: 400 | D179: 轻载 | E179: 10kV | F179: 34.23 | G179: 3.94 | H179: 13.73
A180: 公变 | B180: CQ-观音塘社区-军民小区3号台变 | C180: 400 | D180: 正常 | E180: 10kV | F180: 65.81 | G180: 16.84 | H180: 35.08
A181: 公变 | B181: CQ-观音塘社区-松园1#台变 | C181: 400 | D181: 轻载 | E181: 10kV | F181: 54.75 | G181: 8.34 | H181: 21.54
A182: 公变 | B182: CQ-观音塘社区-松园2#台变 | C182: 400 | D182: 正常 | E182: 10kV | F182: 110.31 | G182: 9.25 | H182: 33.53
A183: 公变 | B183: CQ-观音塘社区-腾越古镇二期1#箱变-DW | C183: 630 | D183: 轻载 | E183: 10kV | F183: 33.91 | G183: 4.64 | H183: 14.21
A184: 公变 | B184: CQ-观音塘社区-腾越古镇二期2#箱变-DW | C184: 630 | D184: 轻载 | E184: 10kV | F184: 20.6 | G184: 3.7 | H184: 10.74
A185: 公变 | B185: CQ-观音塘社区-腾越古镇一期1#箱变-DW | C185: 400 | D185: 正常 | E185: 10kV | F185: 61.07 | G185: 11.07 | H185: 33.35
A186: 公变 | B186: CQ-观音塘社区-腾越古镇一期2#箱变-DW | C186: 400 | D186: 轻载 | E186: 10kV | F186: 32.95 | G186: 6.87 | H186: 17.27
A187: 公变 | B187: CQ-观音塘社区-香槟庄园(4期)1#箱变-DW | C187: 1250 | D187: 轻载 | E187: 10kV | F187: 15.74 | G187: 2.07 | H187: 5.36
A188: 公变 | B188: CQ-观音塘社区-香槟庄园(二期)1#箱变-DW | C188: 1000 | D188: 轻载 | E188: 10kV | F188: 13.04 | G188: 1.94 | H188: 5.18
A189: 公变 | B189: CQ-观音塘社区-香槟庄园(二期)2#箱变-DW | C189: 800 | D189: 轻载 | E189: 10kV | F189: 22.85 | G189: 3.46 | H189: 8.38
A190: 公变 | B190: CQ-观音塘社区-香槟庄园1#箱变 | C190: 800 | D190: 轻载 | E190: 10kV | F190: 23.04 | G190: 3.16 | H190: 8.76
A191: 公变 | B191: CQ-观音塘社区-香槟庄园三区箱变-DW | C191: 800 | D191: 轻载 | E191: 10kV | F191: 14.2 | G191: 1.65 | H191: 5.22
A192: 公变 | B192: CQ-观音塘社区-香槟庄园四期配电室2#箱变-DW | C192: 1250 | D192: 轻载 | E192: 10kV | F192: 22.05 | G192: 3.13 | H192: 9.41
A193: 公变 | B193: CQ-观音塘社区-玉宸翠景小区1#箱变 | C193: 500 | D193: 轻载 | E193: 10kV | F193: 14.36 | G193: 2.15 | H193: 6.37
A194: 公变 | B194: CQ-观音塘社区-玉宸翠景小区2#箱变 | C194: 1250 | D194: 轻载 | E194: 10kV | F194: 18.34 | G194: 3.27 | H194: 8.74
A195: 公变 | B195: CQ-满邑社区-095#线1#箱变 | C195: 800 | D195: 正常 | E195: 10kV | F195: 50.97 | G195: 13.64 | H195: 27.96
A196: 公变 | B196: CQ-满邑社区-菜园坡台变 | C196: 315 | D196: 正常 | E196: 10kV | F196: 77.67 | G196: 10.76 | H196: 32.3
A197: 公变 | B197: CQ-满邑社区-海华路台变 | C197: 500 | D197: 重载 | E197: 10kV | F197: 105.68 | G197: 18.7 | H197: 62.18
A198: 公变 | B198: CQ-满邑社区-华严三小区台变 | C198: 400 | D198: 正常 | E198: 10kV | F198: 76.83 | G198: 15.53 | H198: 40.92
A199: 公变 | B199: CQ-满邑社区-华园一小区台变 | C199: 315 | D199: 正常 | E199: 10kV | F199: 63.21 | G199: 9.47 | H199: 30.14
A200: 公变 | B200: CQ-满邑社区-林业大厦台变 | C200: 315 | D200: 正常 | E200: 10kV | F200: 60.39 | G200: 12.38 | H200: 32.13
... 1846 more rows

Sheet Sheet2 (hidden)
A2: 序号 | B2: 设备名称（准确、完整描述配变名称） | C2: 变压器容量 | D2: 负载情况（轻载、重载、过载） | E2: 最大负载率（%） | F2: 季度平均负载率（%） | G2: 可开放容量(kVA) | H2: 是否接入受限（是/否）
A3: 1 | B3: BH-打苴社区-大寨台变 | C3: 400 | D3: 正常 | E3: 57.04 | F3: 28.33 | G3: =(C3-C3*F3/100)*0.9 -> 258.01 | H3: 否
A4: 2 | B4: BH-打苴社区-邓家寨台变 | C4: 250 | D4: 轻载 | E4: 22.67 | F4: 8.62 | G4: 205.61 | H4: 否
A5: 3 | B5: BH-打苴社区-东山台变 | C5: 400 | D5: 轻载 | E5: 25.46 | F5: 9.51 | G5: 325.76 | H5: 否
A6: 4 | B6: BH-打苴社区-横寨台变 | C6: 315 | D6: 轻载 | E6: 32.27 | F6: 11.91 | G6: 249.74 | H6: 否
A7: 5 | B7: BH-打苴社区-李家寨台变 | C7: 200 | D7: 轻载 | E7: 24.05 | F7: 7.17 | G7: 167.09 | H7: 否
A8: 6 | B8: BH-打苴社区-龙桥头台变 | C8: 80 | D8: 轻载 | E8: 22.06 | F8: 5.14 | G8: 68.30 | H8: 否
A9: 7 | B9: BH-打苴社区-马家源台变 | C9: 80 | D9: 轻载 | E9: 28.39 | F9: 6.06 | G9: 67.64 | H9: 否
A10: 8 | B10: BH-打苴社区-孙家寨台变 | C10: 125 | D10: 轻载 | E10: 27.4 | F10: 8.79 | G10: 102.61 | H10: 否
A11: 9 | B11: BH-打苴社区-塘子河1#台变 | C11: 125 | D11: 轻载 | E11: 50.3 | F11: 20.62 | G11: 89.30 | H11: 否
A12: 10 | B12: BH-打苴社区-塘子河2#台变 | C12: 50 | D12: 轻载 | E12: 30.74 | F12: 4.94 | G12: 42.78 | H12: 否
A13: 11 | B13: BH-打苴社区-徐家湾番家寨台变 | C13: 250 | D13: 轻载 | E13: 23.93 | F13: 7.24 | G13: 208.71 | H13: 否
A14: 12 | B14: BH-打苴社区-杨家湾台变 | C14: 200 | D14: 轻载 | E14: 24.46 | F14: 10.64 | G14: 160.85 | H14: 否
A15: 13 | B15: BH-凤山社区-后屯台变 | C15: 400 | D15: 轻载 | E15: 33.92 | F15: 12.7 | G15: 314.28 | H15: 否
A16: 14 | B16: BH-凤山社区-沙帽山台变 | C16: 100 | D16: 轻载 | E16: 41.55 | F16: 10.61 | G16: 80.45 | H16: 否
A17: 15 | B17: BH-凤山社区-小尹家湾台变 | C17: 160 | D17: 轻载 | E17: 26.37 | F17: 7.24 | G17: 133.57 | H17: 否
A18: 16 | B18: BH-富裕社区-白寺台变 | C18: 400 | D18: 轻载 | E18: 26.27 | F18: 11.61 | G18: 318.20 | H18: 否
A19: 17 | B19: BH-富裕社区-大井台变 | C19: 315 | D19: 轻载 | E19: 30.24 | F19: 10.28 | G19: 254.36 | H19: 否
A20: 18 | B20: BH-富裕社区-大石板尹家小河台变 | C20: 315 | D20: 正常 | E20: 54.33 | F20: 24.45 | G20: 214.18 | H20: 否
A21: 19 | B21: BH-富裕社区-范、赵、平、杨台变 | C21: 315 | D21: 轻载 | E21: 31.26 | F21: 13.29 | G21: 245.82 | H21: 否
A22: 20 | B22: BH-富裕社区-坡头坡脚台变 | C22: 250 | D22: 轻载 | E22: 21.18 | F22: 8.44 | G22: 206.01 | H22: 否
A23: 21 | B23: BH-富裕社区-秋厂台变 | C23: 200 | D23: 轻载 | E23: 40.05 | F23: 15.39 | G23: 152.30 | H23: 否
A24: 22 | B24: BH-富裕社区-小井台变 | C24: 250 | D24: 轻载 | E24: 29.43 | F24: 9.3 | G24: 204.08 | H24: 否
A25: 23 | B25: BH-岗峨社区-孟家寨台变 | C25: 315 | D25: 轻载 | E25: 48.54 | F25: 19.79 | G25: 227.40 | H25: 否
A26: 24 | B26: BH-岗峨社区-挑坡台变 | C26: 315 | D26: 轻载 | E26: 36.54 | F26: 11.16 | G26: 251.86 | H26: 否
A27: 25 | B27: BH-岗峨社区-新寨台变 | C27: 80 | D27: 轻载 | E27: 33.7 | F27: 12.36 | G27: 63.10 | H27: 否
A28: 26 | B28: BH-岗峨社区-中村台变 | C28: 200 | D28: 轻载 | E28: 32.99 | F28: 12.55 | G28: 157.41 | H28: 否
A29: 27 | B29: BH-高原社区-龙塘台变 | C29: 30 | D29: 轻载 | E29: 52.89 | F29: 11.71 | G29: 23.84 | H29: 否
A30: 28 | B30: BH-花园村-杜家湾台变 | C30: 315 | D30: 轻载 | E30: 16.85 | F30: 5.58 | G30: 267.68 | H30: 否
A31: 29 | B31: BH-花园村-康何台变 | C31: 200 | D31: 轻载 | E31: 22.64 | F31: 8.85 | G31: 164.07 | H31: 否
A32: 30 | B32: BH-花园村-麻梨山台变 | C32: 315 | D32: 轻载 | E32: 19.04 | F32: 10.73 | G32: 253.08 | H32: 否
A33: 31 | B33: BH-花园村-柞木树台变 | C33: 200 | D33: 轻载 | E33: 21.2 | F33: 6.61 | G33: 168.10 | H33: 否
A34: 32 | B34: BH-双海社区-柴家营台变 | C34: 400 | D34: 轻载 | E34: 23.9 | F34: 9.57 | G34: 325.55 | H34: 否
A35: 33 | B35: BH-双海社区-海口1#台变 | C35: 400 | D35: 轻载 | E35: 32.09 | F35: 13.67 | G35: 310.79 | H35: 否
A36: 34 | B36: BH-双海社区-海口2#台变 | C36: 400 | D36: 轻载 | E36: 23.31 | F36: 8.35 | G36: 329.94 | H36: 否
A37: 35 | B37: BH-双海社区-邵家营1#台变 | C37: 400 | D37: 轻载 | E37: 39.53 | F37: 16.69 | G37: 299.92 | H37: 否
A38: 36 | B38: BH-双海社区-邵家营2#台变 | C38: 80 | D38: 正常 | E38: 74.01 | F38: 31.29 | G38: 49.47 | H38: 否
A39: 37 | B39: BH-双海社区-水沟台变 | C39: 400 | D39: 轻载 | E39: 34.46 | F39: 14.68 | G39: 307.15 | H39: 否
A40: 38 | B40: BH-双海社区-赵家岳家台变 | C40: 400 | D40: 轻载 | E40: 22.13 | F40: 8.92 | G40: 327.89 | H40: 否
A41: 39 | B41: BH-双坡村-大元塘台变 | C41: 50 | D41: 轻载 | E41: 67.54 | F41: 8.18 | G41: 41.32 | H41: 否
A42: 40 | B42: BH-双坡村-麻厂安置地台变 | C42: 30 | D42: 轻载 | E42: 79.65 | F42: 5.1 | G42: 25.62 | H42: 否
A43: 41 | B43: BH-双坡村-双坡台变 | C43: 160 | D43: 轻载 | E43: 34.03 | F43: 8.79 | G43: 131.34 | H43: 否
A44: 42 | B44: BH-双坡村-新寨台变 | C44: 50 | D44: 轻载 | E44: 20.06 | F44: 3.71 | G44: 43.33 | H44: 否
A45: 43 | B45: BH-下村社区-北海下村台变 | C45: 315 | D45: 轻载 | E45: 26.92 | F45: 9.29 | G45: 257.16 | H45: 否
A46: 44 | B46: BH-下村社区-杜家湾台变 | C46: 200 | D46: 轻载 | E46: 32.94 | F46: 11.33 | G46: 159.61 | H46: 否
A47: 45 | B47: BH-下村社区-后所营台变 | C47: 200 | D47: 正常 | E47: 68.93 | F47: 25.21 | G47: 134.62 | H47: 否
A48: 46 | B48: BH-下村社区-上村台变 | C48: 100 | D48: 轻载 | E48: 36.8 | F48: 7.58 | G48: 83.18 | H48: 否
A49: 47 | B49: BH-下村社区-中村台变 | C49: 400 | D49: 轻载 | E49: 29.61 | F49: 8.91 | G49: 327.92 | H49: 否
A50: 48 | B50: BH-新乐社区-代家寨台变 | C50: 200 | D50: 轻载 | E50: 46.88 | F50: 11.94 | G50: 158.51 | H50: 否
A51: 49 | B51: BH-新乐社区-番徐刘马段家寨台变 | C51: 315 | D51: 轻载 | E51: 47.61 | F51: 15.14 | G51: 240.58 | H51: 否
A52: 50 | B52: BH-新乐社区-沟下台变 | C52: 200 | D52: 轻载 | E52: 24.9 | F52: 6.28 | G52: 168.70 | H52: 否
A53: 51 | B53: BH-新乐社区-郭家营台变 | C53: 100 | D53: 正常 | E53: 68.72 | F53: 18.3 | G53: 73.53 | H53: 否
A54: 52 | B54: BH-新乐社区-龙家营台变 | C54: 315 | D54: 轻载 | E54: 44.16 | F54: 12.82 | G54: 247.16 | H54: 否
A55: 53 | B55: BH-新乐社区-玛御谷清芷园1#箱变-DW | C55: 800 | D55: 轻载 | E55: 17.18 | F55: 7.79 | G55: 663.91 | H55: 否
A56: 54 | B56: BH-新乐社区-玛御谷清芷园2#箱变-DW | C56: 630 | D56: 轻载 | E56: 20.71 | F56: 9.71 | G56: 511.94 | H56: 否
A57: 55 | B57: BH-新乐社区-玛御谷清芷园3#箱变-DW | C57: 500 | D57: 轻载 | E57: 16.52 | F57: 5.95 | G57: 423.23 | H57: 否
A58: 56 | B58: BH-新乐社区-清河台变 | C58: 100 | D58: 轻载 | E58: 33.05 | F58: 9.13 | G58: 81.78 | H58: 否
A59: 57 | B59: BH-新乐社区-新乐街1#台变 | C59: 315 | D59: 正常 | E59: 81.03 | F59: 29.61 | G59: 199.56 | H59: 否
A60: 58 | B60: BH-新乐社区-新乐街2#台变 | C60: 315 | D60: 正常 | E60: 98.93 | F60: 39.29 | G60: 172.11 | H60: 否
A61: 59 | B61: BH-新乐社区-秧田洼台变 | C61: 200 | D61: 正常 | E61: 74.9 | F61: 30.72 | G61: 124.70 | H61: 否
A62: 60 | B62: BH-盈河村-岔路台变 | C62: 315 | D62: 轻载 | E62: 55.09 | F62: 9.61 | G62: 256.26 | H62: 否
A63: 61 | B63: BH-盈河村-大寨台变 | C63: 315 | D63: 轻载 | E63: 33.33 | F63: 15.17 | G63: 240.49 | H63: 否
A64: 62 | B64: BH-盈河村-汉坝台变 | C64: 125 | D64: 轻载 | E64: 34.08 | F64: 8.49 | G64: 102.95 | H64: 否
A65: 63 | B65: BH-盈河村-河头台变 | C65: 80 | D65: 轻载 | E65: 35.56 | F65: 10.51 | G65: 64.43 | H65: 否
A66: 64 | B66: BH-盈河村-街子台变 | C66: 80 | D66: 正常 | E66: 147.08 | F66: 29.03 | G66: 51.10 | H66: 否
A67: 65 | B67: BH-盈河村-酒寨台变 | C67: 250 | D67: 轻载 | E67: 37.7 | F67: 12.92 | G67: =(C67-C67*F67/100)*0.9 -> 195.93 | H67: 否
A68: 66 | B68: BH-盈河村-李家寨台变 | C68: 125 | D68: 轻载 | E68: 50.08 | F68: 16.72 | G68: 93.69 | H68: 否
A69: 67 | B69: BH-盈河村-新红台变 | C69: 125 | D69: 轻载 | E69: 44.46 | F69: 15.09 | G69: 95.52 | H69: 否
A70: 68 | B70: BH-盈河村-澡塘台变 | C70: 200 | D70: 轻载 | E70: 19.64 | F70: 7.83 | G70: 165.91 | H70: 否
A71: 69 | B71: BH-盈水社区-村尾1#台变 | C71: 100 | D71: 正常 | E71: 71.63 | F71: 33.05 | G71: 60.26 | H71: 否
A72: 70 | B72: BH-盈水社区-村尾2#台变 | C72: 315 | D72: 轻载 | E72: 27.4 | F72: 10.2 | G72: 254.58 | H72: 否
A73: 71 | B73: BH-盈水社区-下河村2#台变 | C73: 315 | D73: 轻载 | E73: 18.73 | F73: 7.64 | G73: 261.84 | H73: 否
A74: 72 | B74: BH-油灯社区-草坝街台变 | C74: 315 | D74: 正常 | E74: 51.57 | F74: 27.91 | G74: 204.38 | H74: 否
A75: 73 | B75: BH-油灯社区-洞觉村台变 | C75: 400 | D75: 轻载 | E75: 34.91 | F75: 13.17 | G75: 312.59 | H75: 否
A76: 74 | B76: BH-油灯社区-油灯庄1#台变 | C76: 315 | D76: 轻载 | E76: 40.47 | F76: 15.08 | G76: 240.75 | H76: 否
A77: 75 | B77: BH-油灯社区-油灯庄2#台变 | C77: 315 | D77: 轻载 | E77: 28.56 | F77: 11.27 | G77: 251.55 | H77: 否
A78: 76 | B78: BH-竹坝村-黄姜地台变 | C78: 30 | D78: 轻载 | E78: 40.03 | F78: 9.21 | G78: 24.51 | H78: 否
A79: 77 | B79: BH-竹坝村-乃撒变台 | C79: 100 | D79: 轻载 | E79: 2.28 | F79: 0.42 | G79: 89.62 | H79: 否
A80: 78 | B80: BH-竹坝村-石老虎台变 | C80: 80 | D80: 轻载 | E80: 34.22 | F80: 9.86 | G80: 64.90 | H80: 否
A81: 79 | B81: CQS-大寨村-大寨1#台变 | C81: 250 | D81: 轻载 | E81: 41.52 | F81: 14.5 | G81: 192.38 | H81: 否
A82: 80 | B82: CQS-大寨村-大寨4#台变 | C82: 315 | D82: 轻载 | E82: 34.63 | F82: 9.79 | G82: 255.75 | H82: 否
A83: 81 | B83: CQS-大寨村-沙坡1#台变 | C83: 250 | D83: 轻载 | E83: 40.27 | F83: 14.58 | G83: 192.20 | H83: 否
A84: 82 | B84: CQS-大寨村-沙坡2#台变 | C84: 160 | D84: 轻载 | E84: 26.13 | F84: 8.91 | G84: 131.17 | H84: 否
A85: 83 | B85: CQS-荆陈村-陈家寨1#台变 | C85: 160 | D85: 轻载 | E85: 41.33 | F85: 13.58 | G85: 124.44 | H85: 否
A86: 84 | B86: CQS-荆陈村-陈家寨2#台变 | C86: 160 | D86: 轻载 | E86: 31.88 | F86: 8.82 | G86: 131.30 | H86: 否
A87: 85 | B87: CQS-荆陈村-陈家寨3#台变 | C87: 315 | D87: 轻载 | E87: 35.66 | F87: 7.24 | G87: 262.97 | H87: 否
A88: 86 | B88: CQS-荆陈村-荆竹寨1#台变 | C88: 160 | D88: 轻载 | E88: 28.28 | F88: 7.54 | G88: 133.14 | H88: 否
A89: 87 | B89: CQS-荆陈村-荆竹寨2#台变 | C89: 315 | D89: 轻载 | E89: 25.71 | F89: 7.72 | G89: 261.61 | H89: 否
A90: 88 | B90: CQS-荆陈村-朱星街集镇台变 | C90: 200 | D90: 轻载 | E90: 48.66 | F90: 19.93 | G90: 144.13 | H90: 否
A91: 89 | B91: CQS-良盈村-芭蕉关1#台变 | C91: 160 | D91: 正常 | E91: 61.38 | F91: 24.11 | G91: 109.28 | H91: 否
A92: 90 | B92: CQS-良盈村-芭蕉关2#台变 | C92: 200 | D92: 轻载 | E92: 29.1 | F92: 11.2 | G92: 159.84 | H92: 否
A93: 91 | B93: CQS-良盈村-半个山台变 | C93: 125 | D93: 轻载 | E93: 37.64 | F93: 8.95 | G93: 102.43 | H93: 否
A94: 92 | B94: CQS-良盈村-蔡家寨老寨子台变 | C94: 50 | D94: 正常 | E94: 72.23 | F94: 8.73 | G94: 41.07 | H94: 否
A95: 93 | B95: CQS-良盈村-蔡家寨新寨子台变 | C95: 80 | D95: 轻载 | E95: 45.32 | F95: 11.99 | G95: 63.37 | H95: 否
A96: 94 | B96: CQS-良盈村-谷家寨台变 | C96: 250 | D96: 轻载 | E96: 23.92 | F96: 6.3 | G96: 210.83 | H96: 否
A97: 95 | B97: CQS-良盈村-蒋家营台变 | C97: 80 | D97: 轻载 | E97: 5.97 | F97: 0.3 | G97: 71.78 | H97: 否
A98: 96 | B98: CQS-良盈村-老洋河台变 | C98: 200 | D98: 轻载 | E98: 41.14 | F98: 10.77 | G98: 160.61 | H98: 否
A99: 97 | B99: CQS-良盈村-良盈村委会台变 | C99: 125 | D99: 轻载 | E99: 102.88 | F99: 13.81 | G99: 96.96 | H99: 否
A100: 98 | B100: CQS-良盈村-蔺家寨1#台变 | C100: 80 | D100: 轻载 | E100: 49.84 | F100: 11.73 | G100: 63.55 | H100: 否
A101: 99 | B101: CQS-良盈村-蔺家寨2#台变 | C101: 200 | D101: 轻载 | E101: 25.52 | F101: 7.97 | G101: 165.65 | H101: 否
A102: 100 | B102: CQS-良盈村-蔺家寨3#台变 | C102: 250 | D102: 轻载 | E102: 35.18 | F102: 10.22 | G102: 202.01 | H102: 否
A103: 101 | B103: CQS-良盈村-热海新村台变 | C103: 80 | D103: 正常 | E103: 73.27 | F103: 30.17 | G103: 50.28 | H103: 否
A104: 102 | B104: CQS-清水村-村委会台变 | C104: 160 | D104: 正常 | E104: 88.01 | F104: 27.14 | G104: 104.92 | H104: 否
A105: 103 | B105: CQS-清水村-湖东新墙台变 | C105: 250 | D105: 正常 | E105: 50.53 | F105: 18.81 | G105: 182.68 | H105: 否
A106: 104 | B106: CQS-清水村-老街子台变 | C106: 315 | D106: 轻载 | E106: 34.99 | F106: 13.99 | G106: 243.84 | H106: 否
A107: 105 | B107: CQS-清水村-老寨子台变 | C107: 160 | D107: 轻载 | E107: 44.45 | F107: 15.42 | G107: 121.80 | H107: 否
A108: 106 | B108: CQS-清水村-刘家寨台变 | C108: 80 | D108: 轻载 | E108: 44.01 | F108: 18.39 | G108: 58.76 | H108: 否
A109: 107 | B109: CQS-清水村-罗所冲下寨台变 | C109: 315 | D109: 轻载 | E109: 96.19 | F109: 19.04 | G109: 229.52 | H109: 否
A110: 108 | B110: CQS-清水村-罗所冲新寨台变 | C110: 125 | D110: 正常 | E110: 58.94 | F110: 23.11 | G110: 86.50 | H110: 否
A111: 109 | B111: CQS-清水村-罗所冲中寨台变 | C111: 200 | D111: 正常 | E111: 86.84 | F111: 39.18 | G111: 109.48 | H111: 否
A112: 110 | B112: CQS-清水村-苏家营1#台变 | C112: 315 | D112: 轻载 | E112: 34.17 | F112: 16.74 | G112: 236.04 | H112: 否
A113: 111 | B113: CQS-清水村-苏家营2#台变 | C113: 80 | D113: 正常 | E113: 64.42 | F113: 25.4 | G113: 53.71 | H113: 否
A114: 112 | B114: CQS-三家村-冯家营台变 | C114: 400 | D114: 轻载 | E114: 29.93 | F114: 11.6 | G114: 318.24 | H114: 否
A115: 113 | B115: CQS-三家村-何家寨台变 | C115: 160 | D115: 轻载 | E115: 36.88 | F115: 9.39 | G115: 130.48 | H115: 否
A116: 114 | B116: CQS-三家村-蛮磊台变 | C116: 100 | D116: 轻载 | E116: 34.17 | F116: 7.22 | G116: 83.50 | H116: 否
A117: 115 | B117: CQS-三家村-三家村寨台变 | C117: 400 | D117: 轻载 | E117: 42.23 | F117: 13.77 | G117: 310.43 | H117: 否
A118: 116 | B118: CQS-三家村-中寨台变 | C118: 250 | D118: 轻载 | E118: 77.28 | F118: 13.37 | G118: 194.92 | H118: 否
A119: 117 | B119: CQS-驼峰村-栗柴坝大坡社台变 | C119: 125 | D119: 轻载 | E119: 36.98 | F119: 11.52 | G119: 99.54 | H119: 否
A120: 118 | B120: CQS-驼峰村-栗柴坝大寨台变 | C120: 200 | D120: 轻载 | E120: 44.76 | F120: 11.54 | G120: 159.23 | H120: 否
A121: 119 | B121: CQS-驼峰村-栗柴坝许上许下台变 | C121: 200 | D121: 轻载 | E121: 43.2 | F121: 13.84 | G121: 155.09 | H121: 否
A122: 120 | B122: CQS-驼峰村-瞿家营1至3社台变 | C122: 200 | D122: 轻载 | E122: 24.88 | F122: 6 | G122: 169.20 | H122: 否
A123: 121 | B123: CQS-驼峰村-瞿家营4、5社台变 | C123: 200 | D123: 轻载 | E123: 30.21 | F123: 7.64 | G123: 166.25 | H123: 否
A124: 122 | B124: CQS-驼峰村-瞿家营6社台变 | C124: 200 | D124: 轻载 | E124: 28.33 | F124: 7.94 | G124: 165.71 | H124: 否
A125: 123 | B125: CQS-驼峰村-瞿家营槽子口台变 | C125: 160 | D125: 轻载 | E125: 34.37 | F125: 11.15 | G125: 127.94 | H125: 否
A126: 124 | B126: CQS-驼峰村-水坝田台变 | C126: 50 | D126: 轻载 | E126: 27.71 | F126: 7.66 | G126: 41.55 | H126: 否
A127: 125 | B127: CQS-驼峰村-文兴社台变 | C127: 250 | D127: 轻载 | E127: 24.22 | F127: 6.09 | G127: 211.30 | H127: 否
A128: 126 | B128: CQS-驼峰村-虞家营新村1#台变 | C128: 250 | D128: 轻载 | E128: 45.72 | F128: 16.56 | G128: 187.74 | H128: 否
A129: 127 | B129: CQS-驼峰村-虞家营新村2#台变 | C129: 315 | D129: 轻载 | E129: 20.26 | F129: 5.24 | G129: 268.64 | H129: 否
A130: 128 | B130: CQ-宝峰社区-5#地块1#(南)箱变 | C130: 800 | D130: 轻载 | E130: 36.17 | F130: 16.79 | G130: 599.11 | H130: 否
A131: 129 | B131: CQ-宝峰社区-碧桂园一期1#箱变-DW | C131: 1250 | D131: 轻载 | E131: 18.68 | F131: 7.74 | G131: =(C131-C131*F131/100)*0.9 -> 1037.93 | H131: 否
A132: 130 | B132: CQ-宝峰社区-碧桂园一期2#箱变-DW | C132: 1250 | D132: 轻载 | E132: 25.05 | F132: 10.15 | G132: 1010.81 | H132: 否
A133: 131 | B133: CQ-宝峰社区-公租房6#地块箱变 | C133: 500 | D133: 正常 | E133: 42.83 | F133: 21.47 | G133: 353.39 | H133: 否
A134: 132 | B134: CQ-宝峰社区-公租房8#地块1#箱变 | C134: 800 | D134: 轻载 | E134: 36.03 | F134: 15.07 | G134: 611.50 | H134: 否
A135: 133 | B135: CQ-宝峰社区-公租房8#地块2#箱变 | C135: 800 | D135: 轻载 | E135: 28.99 | F135: 12.96 | G135: 626.69 | H135: 否
A136: 134 | B136: CQ-宝峰社区-公租房8#地块3#箱变 | C136: 800 | D136: 轻载 | E136: 27.76 | F136: 12.84 | G136: 627.55 | H136: 否
A137: 135 | B137: CQ-宝峰社区-公租房8#地块4#箱变 | C137: 800 | D137: 轻载 | E137: 22.82 | F137: 8.59 | G137: 658.15 | H137: 否
A138: 136 | B138: CQ-宝峰社区-郭家寨台变 | C138: 400 | D138: 正常 | E138: 77.2 | F138: 39.04 | G138: 219.46 | H138: 否
A139: 137 | B139: CQ-宝峰社区-海和苑箱变 | C139: 630 | D139: 轻载 | E139: 12.54 | F139: 4.88 | G139: 539.33 | H139: 否
A140: 138 | B140: CQ-宝峰社区-核桃园丁子寨台变 | C140: 250 | D140: 正常 | E140: 67.13 | F140: 24.31 | G140: 170.30 | H140: 否
A141: 139 | B141: CQ-宝峰社区-卢家寨台变 | C141: 250 | D141: 正常 | E141: 66.39 | F141: 28.29 | G141: 161.35 | H141: 否
A142: 140 | B142: CQ-宝峰社区-人民医院公租房1#箱变-DW | C142: 800 | D142: 轻载 | E142: 20.92 | F142: 6.48 | G142: 673.34 | H142: 否
A143: 141 | B143: CQ-宝峰社区-人民医院公租房2#箱变-DW | C143: 800 | D143: 轻载 | E143: 9.99 | F143: 3.1 | G143: 697.68 | H143: 否
A144: 142 | B144: CQ-宝峰社区-西山坝公租房5号地(北)1#箱变 | C144: 1000 | D144: 轻载 | E144: 26.97 | F144: 13.77 | G144: 776.07 | H144: 否
A145: 143 | B145: CQ-宝峰社区-西山坝公租房7#地块1#箱变 | C145: 500 | D145: 轻载 | E145: 25.62 | F145: 11.8 | G145: 396.90 | H145: 否
A146: 144 | B146: CQ-宝峰社区-西山坝公租房二号地块1#箱变 | C146: 1000 | D146: 轻载 | E146: 32.22 | F146: 13.2 | G146: 781.20 | H146: 否
A147: 145 | B147: CQ-宝峰社区-西山坝公租房二号地块2#箱变 | C147: 1000 | D147: 轻载 | E147: 28.57 | F147: 14.19 | G147: 772.29 | H147: 否
A148: 146 | B148: CQ-宝峰社区-西山坝腾越镇公租房1#箱变-DW | C148: 800 | D148: 轻载 | E148: 19.58 | F148: 8.45 | G148: 659.16 | H148: 否
A149: 147 | B149: CQ-宝峰社区-西山坝腾越镇公租房2#箱变-DW | C149: 800 | D149: 轻载 | E149: 22.7 | F149: 10.16 | G149: 646.85 | H149: 否
A150: 148 | B150: CQ-宝峰社区-西山坝卫生局公租房箱变-DW | C150: 800 | D150: 轻载 | E150: 16.61 | F150: 5.98 | G150: 676.94 | H150: 否
A151: 149 | B151: CQ-东山社区-金鹰地产欢乐湖一期箱变-DW | C151: 800 | D151: 轻载 | E151: 14.35 | F151: 6.48 | G151: 673.34 | H151: 否
A152: 150 | B152: CQ-观音塘社区-434#线1#箱变 | C152: 500 | D152: 正常 | E152: 61.99 | F152: 35.07 | G152: 292.19 | H152: 否
A153: 151 | B153: CQ-观音塘社区-434#线2#箱变 | C153: 800 | D153: 正常 | E153: 69.14 | F153: 41.78 | G153: 419.18 | H153: 否
A154: 152 | B154: CQ-观音塘社区-边防检查站台变 | C154: 400 | D154: 正常 | E154: 59.4 | F154: 29.16 | G154: 255.02 | H154: 否
A155: 153 | B155: CQ-观音塘社区-滨河小区3#桥台变 | C155: 200 | D155: 正常 | E155: 64.7 | F155: 28.57 | G155: 128.57 | H155: 否
A156: 154 | B156: CQ-观音塘社区-财神庙后安置地台变 | C156: 315 | D156: 正常 | E156: 42.97 | F156: 21.68 | G156: 222.04 | H156: 否
A157: 155 | B157: CQ-观音塘社区-大槽子台变 | C157: 400 | D157: 正常 | E157: 65.36 | F157: 26.4 | G157: 264.96 | H157: 否
A158: 156 | B158: CQ-观音塘社区-大宽邑安置地箱变-DW | C158: 630 | D158: 轻载 | E158: 34.35 | F158: 16.74 | G158: 472.08 | H158: 否
A159: 157 | B159: CQ-观音塘社区-东营老路2#台变 | C159: 315 | D159: 正常 | E159: 83.87 | F159: 41.45 | G159: 165.99 | H159: 否
A160: 158 | B160: CQ-观音塘社区-东营老路台变 | C160: 315 | D160: 正常 | E160: 62.31 | F160: 27.11 | G160: 206.64 | H160: 否
A161: 159 | B161: CQ-观音塘社区-翡翠古镇1#箱变-DW | C161: 500 | D161: 轻载 | E161: 28.05 | F161: 13.55 | G161: 389.03 | H161: 否
A162: 160 | B162: CQ-观音塘社区-翡翠古镇2#箱变-DW | C162: 500 | D162: 轻载 | E162: 32.79 | F162: 14.32 | G162: 385.56 | H162: 否
A163: 161 | B163: CQ-观音塘社区-翡翠古镇3#箱变-DW | C163: 500 | D163: 轻载 | E163: 20.2 | F163: 8.88 | G163: 410.04 | H163: 否
A164: 162 | B164: CQ-观音塘社区-公租房4#地块1#箱变 | C164: 800 | D164: 正常 | E164: 26.78 | F164: 13.11 | G164: 625.61 | H164: 否
A165: 163 | B165: CQ-观音塘社区-公租房4#地块2#箱变 | C165: 800 | D165: 轻载 | E165: 21.66 | F165: 8.4 | G165: 659.52 | H165: 否
A166: 164 | B166: CQ-观音塘社区-古茶墅3~4号箱变 | C166: 500 | D166: 轻载 | E166: 7.73 | F166: 2.4 | G166: 439.20 | H166: 否
A167: 165 | B167: CQ-观音塘社区-古茶墅假日庄园箱变-DW | C167: 1250 | D167: 轻载 | E167: 10.82 | F167: 4.47 | G167: 1074.71 | H167: 否
A168: 166 | B168: CQ-观音塘社区-古茶墅小高层住宅1#箱变 | C168: 500 | D168: 轻载 | E168: 18.42 | F168: 7.4 | G168: 416.70 | H168: 否
A169: 167 | B169: CQ-观音塘社区-古茶墅小高层住宅2#箱变 | C169: 500 | D169: 轻载 | E169: 20.23 | F169: 7.38 | G169: 416.79 | H169: 否
A170: 168 | B170: CQ-观音塘社区-拐角楼安置地台变 | C170: 400 | D170: 轻载 | E170: 24.62 | F170: 12.11 | G170: 316.40 | H170: 否
A171: 169 | B171: CQ-观音塘社区-关家巷台变 | C171: 315 | D171: 正常 | E171: 58.94 | F171: 27.26 | G171: 206.22 | H171: 否
A172: 170 | B172: CQ-观音塘社区-观音塘安置地台变 | C172: 400 | D172: 轻载 | E172: 35.22 | F172: 15.53 | G172: 304.09 | H172: 否
A173: 171 | B173: CQ-观音塘社区-观音塘打坟场台变 | C173: 400 | D173: 轻载 | E173: 38.66 | F173: 18.47 | G173: 293.51 | H173: 否
A174: 172 | B174: CQ-观音塘社区-观音塘花园小区台变 | C174: 500 | D174: 正常 | E174: 80.36 | F174: 39.61 | G174: 271.76 | H174: 否
A175: 173 | B175: CQ-观音塘社区-观音塘小区台变 | C175: 315 | D175: 正常 | E175: 81.4 | F175: 42.11 | G175: 164.12 | H175: 否
A176: 174 | B176: CQ-观音塘社区-观音塘玉泉小区台变 | C176: 400 | D176: 正常 | E176: 58.2 | F176: 30.68 | G176: 249.55 | H176: 否
A177: 175 | B177: CQ-观音塘社区-红星小区安置地台变 | C177: 160 | D177: 正常 | E177: 63.16 | F177: 27.25 | G177: 104.76 | H177: 否
A178: 176 | B178: CQ-观音塘社区-惠民公司观音塘公租房台变-DW | C178: 315 | D178: 轻载 | E178: 16.22 | F178: 4.5 | G178: 270.74 | H178: 否
A179: 177 | B179: CQ-观音塘社区-军民小区1号台变 | C179: 400 | D179: 正常 | E179: 60.87 | F179: 34.2 | G179: 236.88 | H179: 否
A180: 178 | B180: CQ-观音塘社区-军民小区2号台变 | C180: 400 | D180: 轻载 | E180: 34.23 | F180: 13.73 | G180: 310.57 | H180: 否
A181: 179 | B181: CQ-观音塘社区-军民小区3号台变 | C181: 400 | D181: 正常 | E181: 65.81 | F181: 35.08 | G181: 233.71 | H181: 否
A182: 180 | B182: CQ-观音塘社区-松园1#台变 | C182: 400 | D182: 轻载 | E182: 54.75 | F182: 21.54 | G182: 282.46 | H182: 否
A183: 181 | B183: CQ-观音塘社区-松园2#台变 | C183: 400 | D183: 正常 | E183: 110.31 | F183: 33.53 | G183: 239.29 | H183: 否
A184: 182 | B184: CQ-观音塘社区-腾越古镇二期1#箱变-DW | C184: 630 | D184: 轻载 | E184: 33.91 | F184: 14.21 | G184: 486.43 | H184: 否
A185: 183 | B185: CQ-观音塘社区-腾越古镇二期2#箱变-DW | C185: 630 | D185: 轻载 | E185: 20.6 | F185: 10.74 | G185: 506.10 | H185: 否
A186: 184 | B186: CQ-观音塘社区-腾越古镇一期1#箱变-DW | C186: 400 | D186: 正常 | E186: 61.07 | F186: 33.35 | G186: 239.94 | H186: 否
A187: 185 | B187: CQ-观音塘社区-腾越古镇一期2#箱变-DW | C187: 400 | D187: 轻载 | E187: 32.95 | F187: 17.27 | G187: 297.83 | H187: 否
A188: 186 | B188: CQ-观音塘社区-香槟庄园(4期)1#箱变-DW | C188: 1250 | D188: 轻载 | E188: 15.74 | F188: 5.36 | G188: 1064.70 | H188: 否
A189: 187 | B189: CQ-观音塘社区-香槟庄园(二期)1#箱变-DW | C189: 1000 | D189: 轻载 | E189: 13.04 | F189: 5.18 | G189: 853.38 | H189: 否
A190: 188 | B190: CQ-观音塘社区-香槟庄园(二期)2#箱变-DW | C190: 800 | D190: 轻载 | E190: 22.85 | F190: 8.38 | G190: 659.66 | H190: 否
A191: 189 | B191: CQ-观音塘社区-香槟庄园1#箱变 | C191: 800 | D191: 轻载 | E191: 23.04 | F191: 8.76 | G191: 656.93 | H191: 否
A192: 190 | B192: CQ-观音塘社区-香槟庄园三区箱变-DW | C192: 800 | D192: 轻载 | E192: 14.2 | F192: 5.22 | G192: 682.42 | H192: 否
A193: 191 | B193: CQ-观音塘社区-香槟庄园四期配电室2#箱变-DW | C193: 1250 | D193: 轻载 | E193: 22.05 | F193: 9.41 | G193: 1019.14 | H193: 否
A194: 192 | B194: CQ-观音塘社区-玉宸翠景小区1#箱变 | C194: 500 | D194: 轻载 | E194: 14.36 | F194: 6.37 | G194: 421.34 | H194: 否
A195: 193 | B195: CQ-观音塘社区-玉宸翠景小区2#箱变 | C195: 1250 | D195: 轻载 | E195: 18.34 | F195: 8.74 | G195: =(C195-C195*F195/100)*0.9 -> 1026.68 | H195: 否
A196: 194 | B196: CQ-满邑社区-095#线1#箱变 | C196: 800 | D196: 正常 | E196: 50.97 | F196: 27.96 | G196: 518.69 | H196: 否
A197: 195 | B197: CQ-满邑社区-菜园坡台变 | C197: 315 | D197: 正常 | E197: 77.67 | F197: 32.3 | G197: 191.93 | H197: 否
A198: 196 | B198: CQ-满邑社区-海华路台变 | C198: 500 | D198: 重载 | E198: 105.68 | F198: 62.18 | G198: 170.19 | H198: 否
A199: 197 | B199: CQ-满邑社区-华严三小区台变 | C199: 400 | D199: 正常 | E199: 76.83 | F199: 40.92 | G199: 212.69 | H199: 否
A200: 198 | B200: CQ-满邑社区-华园一小区台变 | C200: 315 | D200: 正常 | E200: 63.21 | F200: 30.14 | G200: 198.05 | H200: 否
A201: 199 | B201: CQ-满邑社区-林业大厦台变 | C201: 315 | D201: 正常 | E201: 60.39 | F201: 32.13 | G201: 192.41 | H201: 否
... 1846 more rows

Sheet Sheet4
A1: 保山电力腾冲分公司2024年四季度配电网接入能力公示表 | C1: 平均负载率
A2: 序号 | B2: 设备名称（准确、完整描述配变名称） | C2: 变压器容量 | D2: 负载情况（轻载、重载、过载） | E2: 最大负载率（%） | F2: 季度平均负载率（%） | G2: 可开放容量(kVA) | H2: 是否接入受限（是/否） | I2: 覆盖区域（以“县区-乡镇或街道办-村委会或社区-村或小区”的地址层级进行公示）
A3: 1 | B3: BH-打苴社区-大寨台变 | C3: 400 | D3: 轻载 | E3: 57.04 | F3: 28.33 | G3: =(C3-C3*F3/100)*0.9 -> 258.01 | H3: 否 | I3: 打苴社区
A4: 2 | B4: BH-打苴社区-邓家寨台变 | C4: 250 | D4: 轻载 | E4: 22.67 | F4: 8.62 | G4: 205.61 | H4: 否 | I4: 打苴社区
A5: 3 | B5: BH-打苴社区-东山台变 | C5: 400 | D5: 轻载 | E5: 25.46 | F5: 9.51 | G5: 325.76 | H5: 否 | I5: 打苴社区
A6: 4 | B6: BH-打苴社区-横寨台变 | C6: 315 | D6: 轻载 | E6: 32.27 | F6: 11.91 | G6: 249.74 | H6: 否 | I6: 打苴社区
A7: 5 | B7: BH-打苴社区-李家寨台变 | C7: 200 | D7: 轻载 | E7: 24.05 | F7: 7.17 | G7: 167.09 | H7: 否 | I7: 打苴社区
A8: 6 | B8: BH-打苴社区-龙桥头台变 | C8: 80 | D8: 轻载 | E8: 22.06 | F8: 5.14 | G8: 68.30 | H8: 否 | I8: 打苴社区
A9: 7 | B9: BH-打苴社区-马家源台变 | C9: 80 | D9: 轻载 | E9: 28.39 | F9: 6.06 | G9: 67.64 | H9: 否 | I9: 打苴社区
A10: 8 | B10: BH-打苴社区-孙家寨台变 | C10: 125 | D10: 轻载 | E10: 27.4 | F10: 8.79 | G10: 102.61 | H10: 否 | I10: 打苴社区
A11: 9 | B11: BH-打苴社区-塘子河1#台变 | C11: 125 | D11: 轻载 | E11: 50.3 | F11: 20.62 | G11: 89.30 | H11: 否 | I11: 打苴社区
A12: 10 | B12: BH-打苴社区-塘子河2#台变 | C12: 50 | D12: 轻载 | E12: 30.74 | F12: 4.94 | G12: 42.78 | H12: 否 | I12: 打苴社区
A13: 11 | B13: BH-打苴社区-徐家湾番家寨台变 | C13: 250 | D13: 轻载 | E13: 23.93 | F13: 7.24 | G13: 208.71 | H13: 否 | I13: 打苴社区
A14: 12 | B14: BH-打苴社区-杨家湾台变 | C14: 200 | D14: 轻载 | E14: 24.46 | F14: 10.64 | G14: 160.85 | H14: 否 | I14: 打苴社区
A15: 13 | B15: BH-凤山社区-后屯台变 | C15: 400 | D15: 轻载 | E15: 33.92 | F15: 12.7 | G15: 314.28 | H15: 否 | I15: 凤山社区
A16: 14 | B16: BH-凤山社区-沙帽山台变 | C16: 100 | D16: 轻载 | E16: 41.55 | F16: 10.61 | G16: 80.45 | H16: 否 | I16: 凤山社区
A17: 15 | B17: BH-凤山社区-小尹家湾台变 | C17: 160 | D17: 轻载 | E17: 26.37 | F17: 7.24 | G17: 133.57 | H17: 否 | I17: 凤山社区
A18: 16 | B18: BH-富裕社区-白寺台变 | C18: 400 | D18: 轻载 | E18: 26.27 | F18: 11.61 | G18: 318.20 | H18: 否 | I18: 富裕社区
A19: 17 | B19: BH-富裕社区-大井台变 | C19: 315 | D19: 轻载 | E19: 30.24 | F19: 10.28 | G19: 254.36 | H19: 否 | I19: 富裕社区
A20: 18 | B20: BH-富裕社区-大石板尹家小河台变 | C20: 315 | D20: 经济运行 | E20: 54.33 | F20: 24.45 | G20: 214.18 | H20: 否 | I20: 富裕社区
A21: 19 | B21: BH-富裕社区-范、赵、平、杨台变 | C21: 315 | D21: 轻载 | E21: 31.26 | F21: 13.29 | G21: 245.82 | H21: 否 | I21: 富裕社区
A22: 20 | B22: BH-富裕社区-坡头坡脚台变 | C22: 250 | D22: 轻载 | E22: 21.18 | F22: 8.44 | G22: 206.01 | H22: 否 | I22: 富裕社区
A23: 21 | B23: BH-富裕社区-秋厂台变 | C23: 200 | D23: 轻载 | E23: 40.05 | F23: 15.39 | G23: 152.30 | H23: 否 | I23: 富裕社区
A24: 22 | B24: BH-富裕社区-小井台变 | C24: 250 | D24: 轻载 | E24: 29.43 | F24: 9.3 | G24: 204.08 | H24: 否 | I24: 富裕社区
A25: 23 | B25: BH-岗峨社区-孟家寨台变 | C25: 315 | D25: 轻载 | E25: 48.54 | F25: 19.79 | G25: 227.40 | H25: 否 | I25: 岗峨社区
A26: 24 | B26: BH-岗峨社区-挑坡台变 | C26: 315 | D26: 轻载 | E26: 36.54 | F26: 11.16 | G26: 251.86 | H26: 否 | I26: 岗峨社区
A27: 25 | B27: BH-岗峨社区-新寨台变 | C27: 80 | D27: 轻载 | E27: 33.7 | F27: 12.36 | G27: 63.10 | H27: 否 | I27: 岗峨社区
A28: 26 | B28: BH-岗峨社区-中村台变 | C28: 200 | D28: 轻载 | E28: 32.99 | F28: 12.55 | G28: 157.41 | H28: 否 | I28: 岗峨社区
A29: 27 | B29: BH-高原社区-龙塘台变 | C29: 30 | D29: 轻载 | E29: 52.89 | F29: 11.71 | G29: 23.84 | H29: 否 | I29: 高原社区
A30: 28 | B30: BH-花园村-杜家湾台变 | C30: 315 | D30: 轻载 | E30: 16.85 | F30: 5.58 | G30: 267.68 | H30: 否 | I30: 花园村
A31: 29 | B31: BH-花园村-康何台变 | C31: 200 | D31: 轻载 | E31: 22.64 | F31: 8.85 | G31: 164.07 | H31: 否 | I31: 花园村
A32: 30 | B32: BH-花园村-麻梨山台变 | C32: 315 | D32: 轻载 | E32: 19.04 | F32: 10.73 | G32: 253.08 | H32: 否 | I32: 花园村
A33: 31 | B33: BH-花园村-柞木树台变 | C33: 200 | D33: 轻载 | E33: 21.2 | F33: 6.61 | G33: 168.10 | H33: 否 | I33: 花园村
A34: 32 | B34: BH-双海社区-柴家营台变 | C34: 400 | D34: 轻载 | E34: 23.9 | F34: 9.57 | G34: 325.55 | H34: 否 | I34: =VLOOKUP(B34,[1]Sheet2!$B$1:$K$65536,10,FALSE) -> 双海社区
A35: 33 | B35: BH-双海社区-海口1#台变 | C35: 400 | D35: 轻载 | E35: 32.09 | F35: 13.67 | G35: 310.79 | H35: 否 | I35: =VLOOKUP(B35,[1]Sheet2!$B$1:$K$65536,10,FALSE) -> 双海社区
A36: 34 | B36: BH-双海社区-海口2#台变 | C36: 400 | D36: 轻载 | E36: 23.31 | F36: 8.35 | G36: 329.94 | H36: 否 | I36: =VLOOKUP(B36,[1]Sheet2!$B$1:$K$65536,10,FALSE) -> 双海社区
A37: 35 | B37: BH-双海社区-邵家营1#台变 | C37: 400 | D37: 轻载 | E37: 39.53 | F37: 16.69 | G37: 299.92 | H37: 否 | I37: =VLOOKUP(B37,[1]Sheet2!$B$1:$K$65536,10,FALSE) -> 双海社区
A38: 36 | B38: BH-双海社区-邵家营2#台变 | C38: 80 | D38: 经济运行 | E38: 74.01 | F38: 31.29 | G38: 49.47 | H38: 否 | I38: =VLOOKUP(B38,[1]Sheet2!$B$1:$K$65536,10,FALSE) -> 双海社区
A39: 37 | B39: BH-双海社区-水沟台变 | C39: 400 | D39: 轻载 | E39: 34.46 | F39: 14.68 | G39: 307.15 | H39: 否 | I39: =VLOOKUP(B39,[1]Sheet2!$B$1:$K$65536,10,FALSE) -> 双海社区
A40: 38 | B40: BH-双海社区-赵家岳家台变 | C40: 400 | D40: 轻载 | E40: 22.13 | F40: 8.92 | G40: 327.89 | H40: 否 | I40: =VLOOKUP(B40,[1]Sheet2!$B$1:$K$65536,10,FALSE) -> 双海社区
A41: 39 | B41: BH-双坡村-大元塘台变 | C41: 50 | D41: 轻载 | E41: 67.54 | F41: 8.18 | G41: 41.32 | H41: 否 | I41: =VLOOKUP(B41,[1]Sheet2!$B$1:$K$65536,10,FALSE) -> 双坡村
A42: 40 | B42: BH-双坡村-麻厂安置地台变 | C42: 30 | D42: 轻载 | E42: 79.65 | F42: 5.1 | G42: 25.62 | H42: 否 | I42: =VLOOKUP(B42,[1]Sheet2!$B$1:$K$65536,10,FALSE) -> 双坡村
A43: 41 | B43: BH-双坡村-双坡台变 | C43: 160 | D43: 轻载 | E43: 34.03 | F43: 8.79 | G43: 131.34 | H43: 否 | I43: =VLOOKUP(B43,[1]Sheet2!$B$1:$K$65536,10,FALSE) -> 双坡村
A44: 42 | B44: BH-双坡村-新寨台变 | C44: 50 | D44: 轻载 | E44: 20.06 | F44: 3.71 | G44: 43.33 | H44: 否 | I44: =VLOOKUP(B44,[1]Sheet2!$B$1:$K$65536,10,FALSE) -> 双坡村
A45: 43 | B45: BH-下村社区-北海下村台变 | C45: 315 | D45: 轻载 | E45: 26.92 | F45: 9.29 | G45: 257.16 | H45: 否 | I45: =VLOOKUP(B45,[1]Sheet2!$B$1:$K$65536,10,FALSE) -> 下村社区
A46: 44 | B46: BH-下村社区-杜家湾台变 | C46: 200 | D46: 轻载 | E46: 32.94 | F46: 11.33 | G46: 159.61 | H46: 否 | I46: =VLOOKUP(B46,[1]Sheet2!$B$1:$K$65536,10,FALSE) -> 下村社区
A47: 45 | B47: BH-下村社区-后所营台变 | C47: 200 | D47: 经济运行 | E47: 68.93 | F47: 25.21 | G47: 134.62 | H47: 否 | I47: =VLOOKUP(B47,[1]Sheet2!$B$1:$K$65536,10,FALSE) -> 下村社区
A48: 46 | B48: BH-下村社区-上村台变 | C48: 100 | D48: 轻载 | E48: 36.8 | F48: 7.58 | G48: 83.18 | H48: 否 | I48: =VLOOKUP(B48,[1]Sheet2!$B$1:$K$65536,10,FALSE) -> 下村社区
A49: 47 | B49: BH-下村社区-中村台变 | C49: 400 | D49: 轻载 | E49: 29.61 | F49: 8.91 | G49: 327.92 | H49: 否 | I49: =VLOOKUP(B49,[1]Sheet2!$B$1:$K$65536,10,FALSE) -> 下村社区
A50: 48 | B50: BH-新乐社区-代家寨台变 | C50: 200 | D50: 轻载 | E50: 46.88 | F50: 11.94 | G50: 158.51 | H50: 否 | I50: =VLOOKUP(B50,[1]Sheet2!$B$1:$K$65536,10,FALSE) -> 新乐社区
A51: 49 | B51: BH-新乐社区-番徐刘马段家寨台变 | C51: 315 | D51: 轻载 | E51: 47.61 | F51: 15.14 | G51: 240.58 | H51: 否 | I51: =VLOOKUP(B51,[1]Sheet2!$B$1:$K$65536,10,FALSE) -> 新乐社区
A52: 50 | B52: BH-新乐社区-沟下台变 | C52: 200 | D52: 轻载 | E52: 24.9 | F52: 6.28 | G52: 168.70 | H52: 否 | I52: =VLOOKUP(B52,[1]Sheet2!$B$1:$K$65536,10,FALSE) -> 新乐社区
A53: 51 | B53: BH-新乐社区-郭家营台变 | C53: 100 | D53: 经济运行 | E53: 68.72 | F53: 18.3 | G53: 73.53 | H53: 否 | I53: =VLOOKUP(B53,[1]Sheet2!$B$1:$K$65536,10,FALSE) -> 新乐社区
A54: 52 | B54: BH-新乐社区-龙家营台变 | C54: 315 | D54: 轻载 | E54: 44.16 | F54: 12.82 | G54: 247.16 | H54: 否 | I54: =VLOOKUP(B54,[1]Sheet2!$B$1:$K$65536,10,FALSE) -> 新乐社区
A55: 53 | B55: BH-新乐社区-玛御谷清芷园1#箱变-DW | C55: 800 | D55: 轻载 | E55: 17.18 | F55: 7.79 | G55: 663.91 | H55: 否 | I55: =VLOOKUP(B55,[1]Sheet2!$B$1:$K$65536,10,FALSE) -> 新乐社区
A56: 54 | B56: BH-新乐社区-玛御谷清芷园2#箱变-DW | C56: 630 | D56: 轻载 | E56: 20.71 | F56: 9.71 | G56: 511.94 | H56: 否 | I56: =VLOOKUP(B56,[1]Sheet2!$B$1:$K$65536,10,FALSE) -> 新乐社区
A57: 55 | B57: BH-新乐社区-玛御谷清芷园3#箱变-DW | C57: 500 | D57: 轻载 | E57: 16.52 | F57: 5.95 | G57: 423.23 | H57: 否 | I57: =VLOOKUP(B57,[1]Sheet2!$B$1:$K$65536,10,FALSE) -> 新乐社区
A58: 56 | B58: BH-新乐社区-清河台变 | C58: 100 | D58: 轻载 | E58: 33.05 | F58: 9.13 | G58: 81.78 | H58: 否 | I58: =VLOOKUP(B58,[1]Sheet2!$B$1:$K$65536,10,FALSE) -> 新乐社区
A59: 57 | B59: BH-新乐社区-新乐街1#台变 | C59: 315 | D59: 经济运行 | E59: 81.03 | F59: 29.61 | G59: 199.56 | H59: 否 | I59: =VLOOKUP(B59,[1]Sheet2!$B$1:$K$65536,10,FALSE) -> 新乐社区
A60: 58 | B60: BH-新乐社区-新乐街2#台变 | C60: 315 | D60: 经济运行 | E60: 98.93 | F60: 39.29 | G60: 172.11 | H60: 否 | I60: =VLOOKUP(B60,[1]Sheet2!$B$1:$K$65536,10,FALSE) -> 新乐社区
A61: 59 | B61: BH-新乐社区-秧田洼台变 | C61: 200 | D61: 经济运行 | E61: 74.9 | F61: 30.72 | G61: 124.70 | H61: 否 | I61: =VLOOKUP(B61,[1]Sheet2!$B$1:$K$65536,10,FALSE) -> 新乐社区
A62: 60 | B62: BH-盈河村-岔路台变 | C62: 315 | D62: 轻载 | E62: 55.09 | F62: 9.61 | G62: 256.26 | H62: 否 | I62: =VLOOKUP(B62,[1]Sheet2!$B$1:$K$65536,10,FALSE) -> 盈河村
A63: 61 | B63: BH-盈河村-大寨台变 | C63: 315 | D63: 轻载 | E63: 33.33 | F63: 15.17 | G63: 240.49 | H63: 否 | I63: =VLOOKUP(B63,[1]Sheet2!$B$1:$K$65536,10,FALSE) -> 盈河村
A64: 62 | B64: BH-盈河村-汉坝台变 | C64: 125 | D64: 轻载 | E64: 34.08 | F64: 8.49 | G64: 102.95 | H64: 否 | I64: =VLOOKUP(B64,[1]Sheet2!$B$1:$K$65536,10,FALSE) -> 盈河村
A65: 63 | B65: BH-盈河村-河头台变 | C65: 80 | D65: 轻载 | E65: 35.56 | F65: 10.51 | G65: 64.43 | H65: 否 | I65: =VLOOKUP(B65,[1]Sheet2!$B$1:$K$65536,10,FALSE) -> 盈河村
A66: 64 | B66: BH-盈河村-街子台变 | C66: 80 | D66: 经济运行 | E66: 147.08 | F66: 29.03 | G66: 51.10 | H66: 否 | I66: =VLOOKUP(B66,[1]Sheet2!$B$1:$K$65536,10,FALSE) -> 盈河村
A67: 65 | B67: BH-盈河村-酒寨台变 | C67: 250 | D67: 轻载 | E67: 37.7 | F67: 12.92 | G67: =(C67-C67*F67/100)*0.9 -> 195.93 | H67: 否 | I67: =VLOOKUP(B67,[1]Sheet2!$B$1:$K$65536,10,FALSE) -> 盈河村
A68: 66 | B68: BH-盈河村-李家寨台变 | C68: 125 | D68: 轻载 | E68: 50.08 | F68: 16.72 | G68: 93.69 | H68: 否 | I68: =VLOOKUP(B68,[1]Sheet2!$B$1:$K$65536,10,FALSE) -> 盈河村
A69: 67 | B69: BH-盈河村-新红台变 | C69: 125 | D69: 轻载 | E69: 44.46 | F69: 15.09 | G69: 95.52 | H69: 否 | I69: =VLOOKUP(B69,[1]Sheet2!$B$1:$K$65536,10,FALSE) -> 盈河村
A70: 68 | B70: BH-盈河村-澡塘台变 | C70: 200 | D70: 轻载 | E70: 19.64 | F70: 7.83 | G70: 165.91 | H70: 否 | I70: =VLOOKUP(B70,[1]Sheet2!$B$1:$K$65536,10,FALSE) -> 盈河村
A71: 69 | B71: BH-盈水社区-村尾1#台变 | C71: 100 | D71: 经济运行 | E71: 71.63 | F71: 33.05 | G71: 60.26 | H71: 否 | I71: =VLOOKUP(B71,[1]Sheet2!$B$1:$K$65536,10,FALSE) -> 盈水社区
A72: 70 | B72: BH-盈水社区-村尾2#台变 | C72: 315 | D72: 轻载 | E72: 27.4 | F72: 10.2 | G72: 254.58 | H72: 否 | I72: =VLOOKUP(B72,[1]Sheet2!$B$1:$K$65536,10,FALSE) -> 盈水社区
A73: 71 | B73: BH-盈水社区-下河村2#台变 | C73: 315 | D73: 轻载 | E73: 18.73 | F73: 7.64 | G73: 261.84 | H73: 否 | I73: =VLOOKUP(B73,[1]Sheet2!$B$1:$K$65536,10,FALSE) -> 盈水社区
A74: 72 | B74: BH-油灯社区-草坝街台变 | C74: 315 | D74: 经济运行 | E74: 51.57 | F74: 27.91 | G74: 204.38 | H74: 否 | I74: =VLOOKUP(B74,[1]Sheet2!$B$1:$K$65536,10,FALSE) -> 油灯社区
A75: 73 | B75: BH-油灯社区-洞觉村台变 | C75: 400 | D75: 轻载 | E75: 34.91 | F75: 13.17 | G75: 312.59 | H75: 否 | I75: =VLOOKUP(B75,[1]Sheet2!$B$1:$K$65536,10,FALSE) -> 油灯社区
A76: 74 | B76: BH-油灯社区-油灯庄1#台变 | C76: 315 | D76: 轻载 | E76: 40.47 | F76: 15.08 | G76: 240.75 | H76: 否 | I76: =VLOOKUP(B76,[1]Sheet2!$B$1:$K$65536,10,FALSE) -> 油灯社区
A77: 75 | B77: BH-油灯社区-油灯庄2#台变 | C77: 315 | D77: 轻载 | E77: 28.56 | F77: 11.27 | G77: 251.55 | H77: 否 | I77: =VLOOKUP(B77,[1]Sheet2!$B$1:$K$65536,10,FALSE) -> 油灯社区
A78: 76 | B78: BH-竹坝村-黄姜地台变 | C78: 30 | D78: 轻载 | E78: 40.03 | F78: 9.21 | G78: 24.51 | H78: 否 | I78: =VLOOKUP(B78,[1]Sheet2!$B$1:$K$65536,10,FALSE) -> 竹坝村
A79: 77 | B79: BH-竹坝村-乃撒变台 | C79: 100 | D79: 轻载 | E79: 2.28 | F79: 0.42 | G79: 89.62 | H79: 否 | I79: =VLOOKUP(B79,[1]Sheet2!$B$1:$K$65536,10,FALSE) -> 竹坝村
A80: 78 | B80: BH-竹坝村-石老虎台变 | C80: 80 | D80: 轻载 | E80: 34.22 | F80: 9.86 | G80: 64.90 | H80: 否 | I80: =VLOOKUP(B80,[1]Sheet2!$B$1:$K$65536,10,FALSE) -> 竹坝村
A81: 79 | B81: CQS-大寨村-大寨1#台变 | C81: 250 | D81: 轻载 | E81: 41.52 | F81: 14.5 | G81: 192.38 | H81: 否 | I81: =VLOOKUP(B81,[1]Sheet2!$B$1:$K$65536,10,FALSE) -> 大寨村
A82: 80 | B82: CQS-大寨村-大寨4#台变 | C82: 315 | D82: 轻载 | E82: 34.63 | F82: 9.79 | G82: 255.75 | H82: 否 | I82: =VLOOKUP(B82,[1]Sheet2!$B$1:$K$65536,10,FALSE) -> 大寨村
A83: 81 | B83: CQS-大寨村-沙坡1#台变 | C83: 250 | D83: 轻载 | E83: 40.27 | F83: 14.58 | G83: 192.20 | H83: 否 | I83: =VLOOKUP(B83,[1]Sheet2!$B$1:$K$65536,10,FALSE) -> 大寨村
A84: 82 | B84: CQS-大寨村-沙坡2#台变 | C84: 160 | D84: 轻载 | E84: 26.13 | F84: 8.91 | G84: 131.17 | H84: 否 | I84: =VLOOKUP(B84,[1]Sheet2!$B$1:$K$65536,10,FALSE) -> 大寨村
A85: 83 | B85: CQS-荆陈村-陈家寨1#台变 | C85: 160 | D85: 轻载 | E85: 41.33 | F85: 13.58 | G85: 124.44 | H85: 否 | I85: =VLOOKUP(B85,[1]Sheet2!$B$1:$K$65536,10,FALSE) -> 荆陈村
A86: 84 | B86: CQS-荆陈村-陈家寨2#台变 | C86: 160 | D86: 轻载 | E86: 31.88 | F86: 8.82 | G86: 131.30 | H86: 否 | I86: =VLOOKUP(B86,[1]Sheet2!$B$1:$K$65536,10,FALSE) -> 荆陈村
A87: 85 | B87: CQS-荆陈村-陈家寨3#台变 | C87: 315 | D87: 轻载 | E87: 35.66 | F87: 7.24 | G87: 262.97 | H87: 否 | I87: =VLOOKUP(B87,[1]Sheet2!$B$1:$K$65536,10,FALSE) -> 荆陈村
A88: 86 | B88: CQS-荆陈村-荆竹寨1#台变 | C88: 160 | D88: 轻载 | E88: 28.28 | F88: 7.54 | G88: 133.14 | H88: 否 | I88: =VLOOKUP(B88,[1]Sheet2!$B$1:$K$65536,10,FALSE) -> 荆陈村
A89: 87 | B89: CQS-荆陈村-荆竹寨2#台变 | C89: 315 | D89: 轻载 | E89: 25.71 | F89: 7.72 | G89: 261.61 | H89: 否 | I89: =VLOOKUP(B89,[1]Sheet2!$B$1:$K$65536,10,FALSE) -> 荆陈村
A90: 88 | B90: CQS-荆陈村-朱星街集镇台变 | C90: 200 | D90: 轻载 | E90: 48.66 | F90: 19.93 | G90: 144.13 | H90: 否 | I90: =VLOOKUP(B90,[1]Sheet2!$B$1:$K$65536,10,FALSE) -> 荆陈村
A91: 89 | B91: CQS-良盈村-芭蕉关1#台变 | C91: 160 | D91: 经济运行 | E91: 61.38 | F91: 24.11 | G91: 109.28 | H91: 否 | I91: =VLOOKUP(B91,[1]Sheet2!$B$1:$K$65536,10,FALSE) -> 良盈村
A92: 90 | B92: CQS-良盈村-芭蕉关2#台变 | C92: 200 | D92: 轻载 | E92: 29.1 | F92: 11.2 | G92: 159.84 | H92: 否 | I92: =VLOOKUP(B92,[1]Sheet2!$B$1:$K$65536,10,FALSE) -> 良盈村
A93: 91 | B93: CQS-良盈村-半个山台变 | C93: 125 | D93: 轻载 | E93: 37.64 | F93: 8.95 | G93: 102.43 | H93: 否 | I93: =VLOOKUP(B93,[1]Sheet2!$B$1:$K$65536,10,FALSE) -> 良盈村
A94: 92 | B94: CQS-良盈村-蔡家寨老寨子台变 | C94: 50 | D94: 经济运行 | E94: 72.23 | F94: 8.73 | G94: 41.07 | H94: 否 | I94: =VLOOKUP(B94,[1]Sheet2!$B$1:$K$65536,10,FALSE) -> 良盈村
A95: 93 | B95: CQS-良盈村-蔡家寨新寨子台变 | C95: 80 | D95: 轻载 | E95: 45.32 | F95: 11.99 | G95: 63.37 | H95: 否 | I95: =VLOOKUP(B95,[1]Sheet2!$B$1:$K$65536,10,FALSE) -> 良盈村
A96: 94 | B96: CQS-良盈村-谷家寨台变 | C96: 250 | D96: 轻载 | E96: 23.92 | F96: 6.3 | G96: 210.83 | H96: 否 | I96: =VLOOKUP(B96,[1]Sheet2!$B$1:$K$65536,10,FALSE) -> 良盈村
A97: 95 | B97: CQS-良盈村-蒋家营台变 | C97: 80 | D97: 轻载 | E97: 5.97 | F97: 0.3 | G97: 71.78 | H97: 否 | I97: =VLOOKUP(B97,[1]Sheet2!$B$1:$K$65536,10,FALSE) -> 良盈村
A98: 96 | B98: CQS-良盈村-老洋河台变 | C98: 200 | D98: 轻载 | E98: 41.14 | F98: 10.77 | G98: 160.61 | H98: 否 | I98: =VLOOKUP(B98,[1]Sheet2!$B$1:$K$65536,10,FALSE) -> 良盈村
A99: 97 | B99: CQS-良盈村-良盈村委会台变 | C99: 125 | D99: 轻载 | E99: 102.88 | F99: 13.81 | G99: 96.96 | H99: 否 | I99: =VLOOKUP(B99,[1]Sheet2!$B$1:$K$65536,10,FALSE) -> 良盈村
A100: 98 | B100: CQS-良盈村-蔺家寨1#台变 | C100: 80 | D100: 轻载 | E100: 49.84 | F100: 11.73 | G100: 63.55 | H100: 否 | I100: =VLOOKUP(B100,[1]Sheet2!$B$1:$K$65536,10,FALSE) -> 良盈村
A101: 99 | B101: CQS-良盈村-蔺家寨2#台变 | C101: 200 | D101: 轻载 | E101: 25.52 | F101: 7.97 | G101: 165.65 | H101: 否 | I101: =VLOOKUP(B101,[1]Sheet2!$B$1:$K$65536,10,FALSE) -> 良盈村
A102: 100 | B102: CQS-良盈村-蔺家寨3#台变 | C102: 250 | D102: 轻载 | E102: 35.18 | F102: 10.22 | G102: 202.01 | H102: 否 | I102: =VLOOKUP(B102,[1]Sheet2!$B$1:$K$65536,10,FALSE) -> 良盈村
A103: 101 | B103: CQS-良盈村-热海新村台变 | C103: 80 | D103: 经济运行 | E103: 73.27 | F103: 30.17 | G103: 50.28 | H103: 否 | I103: =VLOOKUP(B103,[1]Sheet2!$B$1:$K$65536,10,FALSE) -> 良盈村
A104: 102 | B104: CQS-清水村-村委会台变 | C104: 160 | D104: 经济运行 | E104: 88.01 | F104: 27.14 | G104: 104.92 | H104: 否 | I104: =VLOOKUP(B104,[1]Sheet2!$B$1:$K$65536,10,FALSE) -> 清水村
A105: 103 | B105: CQS-清水村-湖东新墙台变 | C105: 250 | D105: 经济运行 | E105: 50.53 | F105: 18.81 | G105: 182.68 | H105: 否 | I105: =VLOOKUP(B105,[1]Sheet2!$B$1:$K$65536,10,FALSE) -> 清水村
A106: 104 | B106: CQS-清水村-老街子台变 | C106: 315 | D106: 轻载 | E106: 34.99 | F106: 13.99 | G106: 243.84 | H106: 否 | I106: =VLOOKUP(B106,[1]Sheet2!$B$1:$K$65536,10,FALSE) -> 清水村
A107: 105 | B107: CQS-清水村-老寨子台变 | C107: 160 | D107: 轻载 | E107: 44.45 | F107: 15.42 | G107: 121.80 | H107: 否 | I107: =VLOOKUP(B107,[1]Sheet2!$B$1:$K$65536,10,FALSE) -> 清水村
A108: 106 | B108: CQS-清水村-刘家寨台变 | C108: 80 | D108: 轻载 | E108: 44.01 | F108: 18.39 | G108: 58.76 | H108: 否 | I108: =VLOOKUP(B108,[1]Sheet2!$B$1:$K$65536,10,FALSE) -> 清水村
A109: 107 | B109: CQS-清水村-罗所冲下寨台变 | C109: 315 | D109: 轻载 | E109: 96.19 | F109: 19.04 | G109: 229.52 | H109: 否 | I109: =VLOOKUP(B109,[1]Sheet2!$B$1:$K$65536,10,FALSE) -> 清水村
A110: 108 | B110: CQS-清水村-罗所冲新寨台变 | C110: 125 | D110: 经济运行 | E110: 58.94 | F110: 23.11 | G110: 86.50 | H110: 否 | I110: =VLOOKUP(B110,[1]Sheet2!$B$1:$K$65536,10,FALSE) -> 清水村
A111: 109 | B111: CQS-清水村-罗所冲中寨台变 | C111: 200 | D111: 经济运行 | E111: 86.84 | F111: 39.18 | G111: 109.48 | H111: 否 | I111: =VLOOKUP(B111,[1]Sheet2!$B$1:$K$65536,10,FALSE) -> 清水村
A112: 110 | B112: CQS-清水村-苏家营1#台变 | C112: 315 | D112: 轻载 | E112: 34.17 | F112: 16.74 | G112: 236.04 | H112: 否 | I112: =VLOOKUP(B112,[1]Sheet2!$B$1:$K$65536,10,FALSE) -> 清水村
A113: 111 | B113: CQS-清水村-苏家营2#台变 | C113: 80 | D113: 经济运行 | E113: 64.42 | F113: 25.4 | G113: 53.71 | H113: 否 | I113: =VLOOKUP(B113,[1]Sheet2!$B$1:$K$65536,10,FALSE) -> 清水村
A114: 112 | B114: CQS-三家村-冯家营台变 | C114: 400 | D114: 轻载 | E114: 29.93 | F114: 11.6 | G114: 318.24 | H114: 否 | I114: =VLOOKUP(B114,[1]Sheet2!$B$1:$K$65536,10,FALSE) -> 三家村
A115: 113 | B115: CQS-三家村-何家寨台变 | C115: 160 | D115: 轻载 | E115: 36.88 | F115: 9.39 | G115: 130.48 | H115: 否 | I115: =VLOOKUP(B115,[1]Sheet2!$B$1:$K$65536,10,FALSE) -> 三家村
A116: 114 | B116: CQS-三家村-蛮磊台变 | C116: 100 | D116: 轻载 | E116: 34.17 | F116: 7.22 | G116: 83.50 | H116: 否 | I116: =VLOOKUP(B116,[1]Sheet2!$B$1:$K$65536,10,FALSE) -> 三家村
A117: 115 | B117: CQS-三家村-三家村寨台变 | C117: 400 | D117: 轻载 | E117: 42.23 | F117: 13.77 | G117: 310.43 | H117: 否 | I117: =VLOOKUP(B117,[1]Sheet2!$B$1:$K$65536,10,FALSE) -> 三家村
A118: 116 | B118: CQS-三家村-中寨台变 | C118: 250 | D118: 轻载 | E118: 77.28 | F118: 13.37 | G118: 194.92 | H118: 否 | I118: =VLOOKUP(B118,[1]Sheet2!$B$1:$K$65536,10,FALSE) -> 三家村
A119: 117 | B119: CQS-驼峰村-栗柴坝大坡社台变 | C119: 125 | D119: 轻载 | E119: 36.98 | F119: 11.52 | G119: 99.54 | H119: 否 | I119: =VLOOKUP(B119,[1]Sheet2!$B$1:$K$65536,10,FALSE) -> 驼峰村
A120: 118 | B120: CQS-驼峰村-栗柴坝大寨台变 | C120: 200 | D120: 轻载 | E120: 44.76 | F120: 11.54 | G120: 159.23 | H120: 否 | I120: =VLOOKUP(B120,[1]Sheet2!$B$1:$K$65536,10,FALSE) -> 驼峰村
A121: 119 | B121: CQS-驼峰村-栗柴坝许上许下台变 | C121: 200 | D121: 轻载 | E121: 43.2 | F121: 13.84 | G121: 155.09 | H121: 否 | I121: =VLOOKUP(B121,[1]Sheet2!$B$1:$K$65536,10,FALSE) -> 驼峰村
A122: 120 | B122: CQS-驼峰村-瞿家营1至3社台变 | C122: 200 | D122: 轻载 | E122: 24.88 | F122: 6 | G122: 169.20 | H122: 否 | I122: =VLOOKUP(B122,[1]Sheet2!$B$1:$K$65536,10,FALSE) -> 驼峰村
A123: 121 | B123: CQS-驼峰村-瞿家营4、5社台变 | C123: 200 | D123: 轻载 | E123: 30.21 | F123: 7.64 | G123: 166.25 | H123: 否 | I123: =VLOOKUP(B123,[1]Sheet2!$B$1:$K$65536,10,FALSE) -> 驼峰村
A124: 122 | B124: CQS-驼峰村-瞿家营6社台变 | C124: 200 | D124: 轻载 | E124: 28.33 | F124: 7.94 | G124: 165.71 | H124: 否 | I124: =VLOOKUP(B124,[1]Sheet2!$B$1:$K$65536,10,FALSE) -> 驼峰村
A125: 123 | B125: CQS-驼峰村-瞿家营槽子口台变 | C125: 160 | D125: 轻载 | E125: 34.37 | F125: 11.15 | G125: 127.94 | H125: 否 | I125: =VLOOKUP(B125,[1]Sheet2!$B$1:$K$65536,10,FALSE) -> 驼峰村
A126: 124 | B126: CQS-驼峰村-水坝田台变 | C126: 50 | D126: 轻载 | E126: 27.71 | F126: 7.66 | G126: 41.55 | H126: 否 | I126: =VLOOKUP(B126,[1]Sheet2!$B$1:$K$65536,10,FALSE) -> 驼峰村
A127: 125 | B127: CQS-驼峰村-文兴社台变 | C127: 250 | D127: 轻载 | E127: 24.22 | F127: 6.09 | G127: 211.30 | H127: 否 | I127: =VLOOKUP(B127,[1]Sheet2!$B$1:$K$65536,10,FALSE) -> 驼峰村
A128: 126 | B128: CQS-驼峰村-虞家营新村1#台变 | C128: 250 | D128: 轻载 | E128: 45.72 | F128: 16.56 | G128: 187.74 | H128: 否 | I128: =VLOOKUP(B128,[1]Sheet2!$B$1:$K$65536,10,FALSE) -> 驼峰村
A129: 127 | B129: CQS-驼峰村-虞家营新村2#台变 | C129: 315 | D129: 轻载 | E129: 20.26 | F129: 5.24 | G129: 268.64 | H129: 否 | I129: =VLOOKUP(B129,[1]Sheet2!$B$1:$K$65536,10,FALSE) -> 驼峰村
A130: 128 | B130: CQ-宝峰社区-5#地块1#(南)箱变 | C130: 800 | D130: 轻载 | E130: 36.17 | F130: 16.79 | G130: 599.11 | H130: 否 | I130: =VLOOKUP(B130,[1]Sheet2!$B$1:$K$65536,10,FALSE) -> 宝峰社区
A131: 129 | B131: CQ-宝峰社区-碧桂园一期1#箱变-DW | C131: 1250 | D131: 轻载 | E131: 18.68 | F131: 7.74 | G131: =(C131-C131*F131/100)*0.9 -> 1037.93 | H131: 否 | I131: =VLOOKUP(B131,[1]Sheet2!$B$1:$K$65536,10,FALSE) -> 宝峰社区
A132: 130 | B132: CQ-宝峰社区-碧桂园一期2#箱变-DW | C132: 1250 | D132: 轻载 | E132: 25.05 | F132: 10.15 | G132: 1010.81 | H132: 否 | I132: =VLOOKUP(B132,[1]Sheet2!$B$1:$K$65536,10,FALSE) -> 宝峰社区
A133: 131 | B133: CQ-宝峰社区-公租房6#地块箱变 | C133: 500 | D133: 经济运行 | E133: 42.83 | F133: 21.47 | G133: 353.39 | H133: 否 | I133: =VLOOKUP(B133,[1]Sheet2!$B$1:$K$65536,10,FALSE) -> 宝峰社区
A134: 132 | B134: CQ-宝峰社区-公租房8#地块1#箱变 | C134: 800 | D134: 轻载 | E134: 36.03 | F134: 15.07 | G134: 611.50 | H134: 否 | I134: =VLOOKUP(B134,[1]Sheet2!$B$1:$K$65536,10,FALSE) -> 宝峰社区
A135: 133 | B135: CQ-宝峰社区-公租房8#地块2#箱变 | C135: 800 | D135: 轻载 | E135: 28.99 | F135: 12.96 | G135: 626.69 | H135: 否 | I135: =VLOOKUP(B135,[1]Sheet2!$B$1:$K$65536,10,FALSE) -> 宝峰社区
A136: 134 | B136: CQ-宝峰社区-公租房8#地块3#箱变 | C136: 800 | D136: 轻载 | E136: 27.76 | F136: 12.84 | G136: 627.55 | H136: 否 | I136: =VLOOKUP(B136,[1]Sheet2!$B$1:$K$65536,10,FALSE) -> 宝峰社区
A137: 135 | B137: CQ-宝峰社区-公租房8#地块4#箱变 | C137: 800 | D137: 轻载 | E137: 22.82 | F137: 8.59 | G137: 658.15 | H137: 否 | I137: =VLOOKUP(B137,[1]Sheet2!$B$1:$K$65536,10,FALSE) -> 宝峰社区
A138: 136 | B138: CQ-宝峰社区-郭家寨台变 | C138: 400 | D138: 经济运行 | E138: 77.2 | F138: 39.04 | G138: 219.46 | H138: 否 | I138: =VLOOKUP(B138,[1]Sheet2!$B$1:$K$65536,10,FALSE) -> 宝峰社区
A139: 137 | B139: CQ-宝峰社区-海和苑箱变 | C139: 630 | D139: 轻载 | E139: 12.54 | F139: 4.88 | G139: 539.33 | H139: 否 | I139: =VLOOKUP(B139,[1]Sheet2!$B$1:$K$65536,10,FALSE) -> 宝峰社区
A140: 138 | B140: CQ-宝峰社区-核桃园丁子寨台变 | C140: 250 | D140: 经济运行 | E140: 67.13 | F140: 24.31 | G140: 170.30 | H140: 否 | I140: =VLOOKUP(B140,[1]Sheet2!$B$1:$K$65536,10,FALSE) -> 宝峰社区
A141: 139 | B141: CQ-宝峰社区-卢家寨台变 | C141: 250 | D141: 经济运行 | E141: 66.39 | F141: 28.29 | G141: 161.35 | H141: 否 | I141: =VLOOKUP(B141,[1]Sheet2!$B$1:$K$65536,10,FALSE) -> 宝峰社区
A142: 140 | B142: CQ-宝峰社区-人民医院公租房1#箱变-DW | C142: 800 | D142: 轻载 | E142: 20.92 | F142: 6.48 | G142: 673.34 | H142: 否 | I142: =VLOOKUP(B142,[1]Sheet2!$B$1:$K$65536,10,FALSE) -> 宝峰社区
A143: 141 | B143: CQ-宝峰社区-人民医院公租房2#箱变-DW | C143: 800 | D143: 轻载 | E143: 9.99 | F143: 3.1 | G143: 697.68 | H143: 否 | I143: =VLOOKUP(B143,[1]Sheet2!$B$1:$K$65536,10,FALSE) -> 宝峰社区
A144: 142 | B144: CQ-宝峰社区-西山坝公租房5号地(北)1#箱变 | C144: 1000 | D144: 轻载 | E144: 26.97 | F144: 13.77 | G144: 776.07 | H144: 否 | I144: =VLOOKUP(B144,[1]Sheet2!$B$1:$K$65536,10,FALSE) -> 宝峰社区
A145: 143 | B145: CQ-宝峰社区-西山坝公租房7#地块1#箱变 | C145: 500 | D145: 轻载 | E145: 25.62 | F145: 11.8 | G145: 396.90 | H145: 否 | I145: =VLOOKUP(B145,[1]Sheet2!$B$1:$K$65536,10,FALSE) -> 宝峰社区
A146: 144 | B146: CQ-宝峰社区-西山坝公租房二号地块1#箱变 | C146: 1000 | D146: 轻载 | E146: 32.22 | F146: 13.2 | G146: 781.20 | H146: 否 | I146: =VLOOKUP(B146,[1]Sheet2!$B$1:$K$65536,10,FALSE) -> 宝峰社区
A147: 145 | B147: CQ-宝峰社区-西山坝公租房二号地块2#箱变 | C147: 1000 | D147: 轻载 | E147: 28.57 | F147: 14.19 | G147: 772.29 | H147: 否 | I147: =VLOOKUP(B147,[1]Sheet2!$B$1:$K$65536,10,FALSE) -> 宝峰社区
A148: 146 | B148: CQ-宝峰社区-西山坝腾越镇公租房1#箱变-DW | C148: 800 | D148: 轻载 | E148: 19.58 | F148: 8.45 | G148: 659.16 | H148: 否 | I148: =VLOOKUP(B148,[1]Sheet2!$B$1:$K$65536,10,FALSE) -> 宝峰社区
A149: 147 | B149: CQ-宝峰社区-西山坝腾越镇公租房2#箱变-DW | C149: 800 | D149: 轻载 | E149: 22.7 | F149: 10.16 | G149: 646.85 | H149: 否 | I149: =VLOOKUP(B149,[1]Sheet2!$B$1:$K$65536,10,FALSE) -> 宝峰社区
A150: 148 | B150: CQ-宝峰社区-西山坝卫生局公租房箱变-DW | C150: 800 | D150: 轻载 | E150: 16.61 | F150: 5.98 | G150: 676.94 | H150: 否 | I150: =VLOOKUP(B150,[1]Sheet2!$B$1:$K$65536,10,FALSE) -> 宝峰社区
A151: 149 | B151: CQ-东山社区-金鹰地产欢乐湖一期箱变-DW | C151: 800 | D151: 轻载 | E151: 14.35 | F151: 6.48 | G151: 673.34 | H151: 否 | I151: =VLOOKUP(B151,[1]Sheet2!$B$1:$K$65536,10,FALSE) -> 东山社区
A152: 150 | B152: CQ-观音塘社区-434#线1#箱变 | C152: 500 | D152: 经济运行 | E152: 61.99 | F152: 35.07 | G152: 292.19 | H152: 否 | I152: =VLOOKUP(B152,[1]Sheet2!$B$1:$K$65536,10,FALSE) -> 观音塘社区
A153: 151 | B153: CQ-观音塘社区-434#线2#箱变 | C153: 800 | D153: 经济运行 | E153: 69.14 | F153: 41.78 | G153: 419.18 | H153: 否 | I153: =VLOOKUP(B153,[1]Sheet2!$B$1:$K$65536,10,FALSE) -> 观音塘社区
A154: 152 | B154: CQ-观音塘社区-边防检查站台变 | C154: 400 | D154: 经济运行 | E154: 59.4 | F154: 29.16 | G154: 255.02 | H154: 否 | I154: =VLOOKUP(B154,[1]Sheet2!$B$1:$K$65536,10,FALSE) -> 观音塘社区
A155: 153 | B155: CQ-观音塘社区-滨河小区3#桥台变 | C155: 200 | D155: 经济运行 | E155: 64.7 | F155: 28.57 | G155: 128.57 | H155: 否 | I155: =VLOOKUP(B155,[1]Sheet2!$B$1:$K$65536,10,FALSE) -> 观音塘社区
A156: 154 | B156: CQ-观音塘社区-财神庙后安置地台变 | C156: 315 | D156: 经济运行 | E156: 42.97 | F156: 21.68 | G156: 222.04 | H156: 否 | I156: =VLOOKUP(B156,[1]Sheet2!$B$1:$K$65536,10,FALSE) -> 观音塘社区
A157: 155 | B157: CQ-观音塘社区-大槽子台变 | C157: 400 | D157: 经济运行 | E157: 65.36 | F157: 26.4 | G157: 264.96 | H157: 否 | I157: =VLOOKUP(B157,[1]Sheet2!$B$1:$K$65536,10,FALSE) -> 观音塘社区
A158: 156 | B158: CQ-观音塘社区-大宽邑安置地箱变-DW | C158: 630 | D158: 轻载 | E158: 34.35 | F158: 16.74 | G158: 472.08 | H158: 否 | I158: =VLOOKUP(B158,[1]Sheet2!$B$1:$K$65536,10,FALSE) -> 观音塘社区
A159: 157 | B159: CQ-观音塘社区-东营老路2#台变 | C159: 315 | D159: 经济运行 | E159: 83.87 | F159: 41.45 | G159: 165.99 | H159: 否 | I159: =VLOOKUP(B159,[1]Sheet2!$B$1:$K$65536,10,FALSE) -> 观音塘社区
A160: 158 | B160: CQ-观音塘社区-东营老路台变 | C160: 315 | D160: 经济运行 | E160: 62.31 | F160: 27.11 | G160: 206.64 | H160: 否 | I160: =VLOOKUP(B160,[1]Sheet2!$B$1:$K$65536,10,FALSE) -> 观音塘社区
A161: 159 | B161: CQ-观音塘社区-翡翠古镇1#箱变-DW | C161: 500 | D161: 轻载 | E161: 28.05 | F161: 13.55 | G161: 389.03 | H161: 否 | I161: =VLOOKUP(B161,[1]Sheet2!$B$1:$K$65536,10,FALSE) -> 观音塘社区
A162: 160 | B162: CQ-观音塘社区-翡翠古镇2#箱变-DW | C162: 500 | D162: 轻载 | E162: 32.79 | F162: 14.32 | G162: 385.56 | H162: 否 | I162: =VLOOKUP(B162,[1]Sheet2!$B$1:$K$65536,10,FALSE) -> 观音塘社区
A163: 161 | B163: CQ-观音塘社区-翡翠古镇3#箱变-DW | C163: 500 | D163: 轻载 | E163: 20.2 | F163: 8.88 | G163: 410.04 | H163: 否 | I163: =VLOOKUP(B163,[1]Sheet2!$B$1:$K$65536,10,FALSE) -> 观音塘社区
A164: 162 | B164: CQ-观音塘社区-公租房4#地块1#箱变 | C164: 800 | D164: 经济运行 | E164: 26.78 | F164: 13.11 | G164: 625.61 | H164: 否 | I164: =VLOOKUP(B164,[1]Sheet2!$B$1:$K$65536,10,FALSE) -> 观音塘社区
A165: 163 | B165: CQ-观音塘社区-公租房4#地块2#箱变 | C165: 800 | D165: 轻载 | E165: 21.66 | F165: 8.4 | G165: 659.52 | H165: 否 | I165: =VLOOKUP(B165,[1]Sheet2!$B$1:$K$65536,10,FALSE) -> 观音塘社区
A166: 164 | B166: CQ-观音塘社区-古茶墅3~4号箱变 | C166: 500 | D166: 轻载 | E166: 7.73 | F166: 2.4 | G166: 439.20 | H166: 否 | I166: 观音塘社区
A167: 165 | B167: CQ-观音塘社区-古茶墅假日庄园箱变-DW | C167: 1250 | D167: 轻载 | E167: 10.82 | F167: 4.47 | G167: 1074.71 | H167: 否 | I167: =VLOOKUP(B167,[1]Sheet2!$B$1:$K$65536,10,FALSE) -> 观音塘社区
A168: 166 | B168: CQ-观音塘社区-古茶墅小高层住宅1#箱变 | C168: 500 | D168: 轻载 | E168: 18.42 | F168: 7.4 | G168: 416.70 | H168: 否 | I168: =VLOOKUP(B168,[1]Sheet2!$B$1:$K$65536,10,FALSE) -> 观音塘社区
A169: 167 | B169: CQ-观音塘社区-古茶墅小高层住宅2#箱变 | C169: 500 | D169: 轻载 | E169: 20.23 | F169: 7.38 | G169: 416.79 | H169: 否 | I169: =VLOOKUP(B169,[1]Sheet2!$B$1:$K$65536,10,FALSE) -> 观音塘社区
A170: 168 | B170: CQ-观音塘社区-拐角楼安置地台变 | C170: 400 | D170: 轻载 | E170: 24.62 | F170: 12.11 | G170: 316.40 | H170: 否 | I170: =VLOOKUP(B170,[1]Sheet2!$B$1:$K$65536,10,FALSE) -> 观音塘社区
A171: 169 | B171: CQ-观音塘社区-关家巷台变 | C171: 315 | D171: 经济运行 | E171: 58.94 | F171: 27.26 | G171: 206.22 | H171: 否 | I171: =VLOOKUP(B171,[1]Sheet2!$B$1:$K$65536,10,FALSE) -> 观音塘社区
A172: 170 | B172: CQ-观音塘社区-观音塘安置地台变 | C172: 400 | D172: 轻载 | E172: 35.22 | F172: 15.53 | G172: 304.09 | H172: 否 | I172: =VLOOKUP(B172,[1]Sheet2!$B$1:$K$65536,10,FALSE) -> 观音塘社区
A173: 171 | B173: CQ-观音塘社区-观音塘打坟场台变 | C173: 400 | D173: 轻载 | E173: 38.66 | F173: 18.47 | G173: 293.51 | H173: 否 | I173: =VLOOKUP(B173,[1]Sheet2!$B$1:$K$65536,10,FALSE) -> 观音塘社区
A174: 172 | B174: CQ-观音塘社区-观音塘花园小区台变 | C174: 500 | D174: 经济运行 | E174: 80.36 | F174: 39.61 | G174: 271.76 | H174: 否 | I174: =VLOOKUP(B174,[1]Sheet2!$B$1:$K$65536,10,FALSE) -> 观音塘社区
A175: 173 | B175: CQ-观音塘社区-观音塘小区台变 | C175: 315 | D175: 经济运行 | E175: 81.4 | F175: 42.11 | G175: 164.12 | H175: 否 | I175: =VLOOKUP(B175,[1]Sheet2!$B$1:$K$65536,10,FALSE) -> 观音塘社区
A176: 174 | B176: CQ-观音塘社区-观音塘玉泉小区台变 | C176: 400 | D176: 经济运行 | E176: 58.2 | F176: 30.68 | G176: 249.55 | H176: 否 | I176: =VLOOKUP(B176,[1]Sheet2!$B$1:$K$65536,10,FALSE) -> 观音塘社区
A177: 175 | B177: CQ-观音塘社区-红星小区安置地台变 | C177: 160 | D177: 经济运行 | E177: 63.16 | F177: 27.25 | G177: 104.76 | H177: 否 | I177: =VLOOKUP(B177,[1]Sheet2!$B$1:$K$65536,10,FALSE) -> 观音塘社区
A178: 176 | B178: CQ-观音塘社区-惠民公司观音塘公租房台变-DW | C178: 315 | D178: 轻载 | E178: 16.22 | F178: 4.5 | G178: 270.74 | H178: 否 | I178: =VLOOKUP(B178,[1]Sheet2!$B$1:$K$65536,10,FALSE) -> 观音塘社区
A179: 177 | B179: CQ-观音塘社区-军民小区1号台变 | C179: 400 | D179: 经济运行 | E179: 60.87 | F179: 34.2 | G179: 236.88 | H179: 否 | I179: =VLOOKUP(B179,[1]Sheet2!$B$1:$K$65536,10,FALSE) -> 观音塘社区
A180: 178 | B180: CQ-观音塘社区-军民小区2号台变 | C180: 400 | D180: 轻载 | E180: 34.23 | F180: 13.73 | G180: 310.57 | H180: 否 | I180: =VLOOKUP(B180,[1]Sheet2!$B$1:$K$65536,10,FALSE) -> 观音塘社区
A181: 179 | B181: CQ-观音塘社区-军民小区3号台变 | C181: 400 | D181: 经济运行 | E181: 65.81 | F181: 35.08 | G181: 233.71 | H181: 否 | I181: =VLOOKUP(B181,[1]Sheet2!$B$1:$K$65536,10,FALSE) -> 观音塘社区
A182: 180 | B182: CQ-观音塘社区-松园1#台变 | C182: 400 | D182: 轻载 | E182: 54.75 | F182: 21.54 | G182: 282.46 | H182: 否 | I182: =VLOOKUP(B182,[1]Sheet2!$B$1:$K$65536,10,FALSE) -> 观音塘社区
A183: 181 | B183: CQ-观音塘社区-松园2#台变 | C183: 400 | D183: 经济运行 | E183: 110.31 | F183: 33.53 | G183: 239.29 | H183: 否 | I183: =VLOOKUP(B183,[1]Sheet2!$B$1:$K$65536,10,FALSE) -> 观音塘社区
A184: 182 | B184: CQ-观音塘社区-腾越古镇二期1#箱变-DW | C184: 630 | D184: 轻载 | E184: 33.91 | F184: 14.21 | G184: 486.43 | H184: 否 | I184: =VLOOKUP(B184,[1]Sheet2!$B$1:$K$65536,10,FALSE) -> 观音塘社区
A185: 183 | B185: CQ-观音塘社区-腾越古镇二期2#箱变-DW | C185: 630 | D185: 轻载 | E185: 20.6 | F185: 10.74 | G185: 506.10 | H185: 否 | I185: =VLOOKUP(B185,[1]Sheet2!$B$1:$K$65536,10,FALSE) -> 观音塘社区
A186: 184 | B186: CQ-观音塘社区-腾越古镇一期1#箱变-DW | C186: 400 | D186: 经济运行 | E186: 61.07 | F186: 33.35 | G186: 239.94 | H186: 否 | I186: =VLOOKUP(B186,[1]Sheet2!$B$1:$K$65536,10,FALSE) -> 观音塘社区
A187: 185 | B187: CQ-观音塘社区-腾越古镇一期2#箱变-DW | C187: 400 | D187: 轻载 | E187: 32.95 | F187: 17.27 | G187: 297.83 | H187: 否 | I187: =VLOOKUP(B187,[1]Sheet2!$B$1:$K$65536,10,FALSE) -> 观音塘社区
A188: 186 | B188: CQ-观音塘社区-香槟庄园(4期)1#箱变-DW | C188: 1250 | D188: 轻载 | E188: 15.74 | F188: 5.36 | G188: 1064.70 | H188: 否 | I188: =VLOOKUP(B188,[1]Sheet2!$B$1:$K$65536,10,FALSE) -> 观音塘社区
A189: 187 | B189: CQ-观音塘社区-香槟庄园(二期)1#箱变-DW | C189: 1000 | D189: 轻载 | E189: 13.04 | F189: 5.18 | G189: 853.38 | H189: 否 | I189: =VLOOKUP(B189,[1]Sheet2!$B$1:$K$65536,10,FALSE) -> 观音塘社区
A190: 188 | B190: CQ-观音塘社区-香槟庄园(二期)2#箱变-DW | C190: 800 | D190: 轻载 | E190: 22.85 | F190: 8.38 | G190: 659.66 | H190: 否 | I190: =VLOOKUP(B190,[1]Sheet2!$B$1:$K$65536,10,FALSE) -> 观音塘社区
A191: 189 | B191: CQ-观音塘社区-香槟庄园1#箱变 | C191: 800 | D191: 轻载 | E191: 23.04 | F191: 8.76 | G191: 656.93 | H191: 否 | I191: =VLOOKUP(B191,[1]Sheet2!$B$1:$K$65536,10,FALSE) -> 观音塘社区
A192: 190 | B192: CQ-观音塘社区-香槟庄园三区箱变-DW | C192: 800 | D192: 轻载 | E192: 14.2 | F192: 5.22 | G192: 682.42 | H192: 否 | I192: =VLOOKUP(B192,[1]Sheet2!$B$1:$K$65536,10,FALSE) -> 观音塘社区
A193: 191 | B193: CQ-观音塘社区-香槟庄园四期配电室2#箱变-DW | C193: 1250 | D193: 轻载 | E193: 22.05 | F193: 9.41 | G193: 1019.14 | H193: 否 | I193: =VLOOKUP(B193,[1]Sheet2!$B$1:$K$65536,10,FALSE) -> 观音塘社区
A194: 192 | B194: CQ-观音塘社区-玉宸翠景小区1#箱变 | C194: 500 | D194: 轻载 | E194: 14.36 | F194: 6.37 | G194: 421.34 | H194: 否 | I194: =VLOOKUP(B194,[1]Sheet2!$B$1:$K$65536,10,FALSE) -> 观音塘社区
A195: 193 | B195: CQ-观音塘社区-玉宸翠景小区2#箱变 | C195: 1250 | D195: 轻载 | E195: 18.34 | F195: 8.74 | G195: =(C195-C195*F195/100)*0.9 -> 1026.68 | H195: 否 | I195: =VLOOKUP(B195,[1]Sheet2!$B$1:$K$65536,10,FALSE) -> 观音塘社区
A196: 194 | B196: CQ-满邑社区-095#线1#箱变 | C196: 800 | D196: 经济运行 | E196: 50.97 | F196: 27.96 | G196: 518.69 | H196: 否 | I196: =VLOOKUP(B196,[1]Sheet2!$B$1:$K$65536,10,FALSE) -> 满邑社区
A197: 195 | B197: CQ-满邑社区-菜园坡台变 | C197: 315 | D197: 经济运行 | E197: 77.67 | F197: 32.3 | G197: 191.93 | H197: 否 | I197: =VLOOKUP(B197,[1]Sheet2!$B$1:$K$65536,10,FALSE) -> 满邑社区
A198: 196 | B198: CQ-满邑社区-海华路台变 | C198: 500 | D198: 重载 | E198: 105.68 | F198: 62.18 | G198: 170.19 | H198: 否 | I198: =VLOOKUP(B198,[1]Sheet2!$B$1:$K$65536,10,FALSE) -> 满邑社区
A199: 197 | B199: CQ-满邑社区-华严三小区台变 | C199: 400 | D199: 经济运行 | E199: 76.83 | F199: 40.92 | G199: 212.69 | H199: 否 | I199: =VLOOKUP(B199,[1]Sheet2!$B$1:$K$65536,10,FALSE) -> 满邑社区
A200: 198 | B200: CQ-满邑社区-华园一小区台变 | C200: 315 | D200: 经济运行 | E200: 63.21 | F200: 30.14 | G200: 198.05 | H200: 否 | I200: =VLOOKUP(B200,[1]Sheet2!$B$1:$K$65536,10,FALSE) -> 满邑社区
... 1847 more rows
